Workbook

Sheet Modèle
C2: Corotrainer | K2: Mise en croix | M2: Bulle | N2: Hélice | O2: Repères du fuselage | Q2: Train d'atterrissage
B4: Aile | F4: Stab | K4: Aile | L4: Stab | Q4: Bicycle | T4: Tricycle | V4: Aucun | Y4: Fuselage (cotes en mm) | AC4: vue de dessus | AK4: vue de profil | AQ4: Vue de face
B5: Surface Alaire (dm²) | C5: 23 | F5: Surface du stab (dm²) | G5: 5 | Y5: Hauteur aile / ligne ref fus | Z5: 70 | AQ5: x ligne ref | AR5: y ligne ref | AS5: x roue d | AT5: y roue d | AU5: x fus nez | AV5: y fus nez
B6: Allongement | C6: =((Env_complete*Env_complete)/Surface_Alaire)/10000 -> 4.347826087 | F6: Allongement | G6: =((Env_stab*Env_stab)/Surface_Stab)/10000 -> 3.2 | K6: Lissages | R6: Rotation de l'hélice | Y6: Hauteur stab / ligne ref fus | Z6: 0 | AC6: x aile d | AD6: y aile d | AE6: x stab d | AF6: y stab d | AG6: x axe | AH6: y axe | AK6: x ligne ref | AL6: y ligne ref | AN6: x cone | AO6: y cone | AQ6: =xg_ligne_ref -> -445 | AR6: =-Longueur_fuselage/1.1 -> -809.0909091 | AS6: =AS13 -> 87.19953207 | AT6: =AT13+(Diametre_roues/2) -> -931.0909091 | AU6: =Couple1_Largeur/2 -> 40 | AV6: =AR6-Couple1_Hauteur_bas -> -839.0909091
B7: Envergure (mm) | C7: 1000 | D7: mm | F7: Effilement | G7: 1 | K7: Bulle | M7: Fuselage | O7: Aile | R7: -43 | Y7: Longueur cône | Z7: 40 | AC7: =0 -> 0 | AD7: =(Longueur_fuselage-Couple3_Position) -> 750 | AE7: =0 -> 0 | AF7: =Longueur_fuselage-Couple7_Position -> 125 | AG7: =(Longueur_fuselage+Longueur_cone)*1.1 -> 1023 | AH7: 0 | AK7: =-(Longueur_fuselage)/2 -> -445 | AL7: =-(Longueur_fuselage/3) -> -296.6666667 | AN7: =xg_ligne_ref -> -445 | AO7: =y_ligne_ref+(Diametre_cone/2) -> -286.6666667 | AQ7: =-AQ6 -> 445 | AR7: =AR6 -> -809.0909091 | AS7: =AS13 -> 87.19953207 | AT7: =AT13-(Diametre_roues/2) -> -996.0909091 | AU7: =AU6 -> 40 | AV7: =AR6+Couple1_Hauteur_haut -> -769.0909091
B8: Effilement | C8: 1 | F8: Env panneau (mm) | G8: =Env_stab/2 -> 200 | H8: mm | Y8: Diamètre du cône | Z8: 20 | AC8: =Env_panneau_aile+AC7 -> 500 | AD8: =AD7-Fleche_aile -> 750 | AE8: =Env_Panneau_Stab+AE7 -> 200 | AF8: =(AF7-Fleche_stab) -> 125 | AG8: =-(AG7) -> -1023 | AH8: 0 | AK8: =-xg_ligne_ref -> 445 | AL8: =-(Longueur_fuselage/3) -> -296.6666667 | AN8: =xg_ligne_ref-Longueur_cone -> -485 | AO8: =y_ligne_ref -> -296.6666667 | AQ8: x stab d | AR8: y stab d | AS8: x stab g | AT8: y stab g | AU8: =-AU6 -> -40 | AV8: =AV7 -> -769.0909091
B9: Env panneau | C9: =Env_complete/2 -> 500 | D9: mm | F9: Env totale (mm) | G9: 400 | Y9: Couple 1 nez | AC9: =AC8 -> 500 | AD9: =-Csau_aile+AD8 -> 520 | AE9: =AE8 -> 200 | AF9: =-Csau_stab+AF8 -> 0 | AG9: =(Longueur_fuselage+Longueur_cone)*1.1 -> 1023 | AH9: 0 | AK9: x fus profil | AL9: y fus profil | AN9: =xg_ligne_ref -> -445 | AO9: =y_ligne_ref-(Diametre_cone/2) -> -306.6666667 | AQ9: =Couple7_Largeur/2 -> 17.5 | AR9: =AR6+Hauteur_stab -> -809.0909091 | AS9: =-AQ9 -> -17.5 | AT9: =AR9 -> -809.0909091 | AU9: =-AU6 -> -40 | AV9: =AV6 -> -839.0909091
B10: Flèche (mm) | C10: 0 | F10: Env complète avec fuselage | G10: =Env_stab -> 400 | H10: mm | Y10: Largeur | Z10: 80 | AC10: =0 -> 0 | AD10: =-Cemp_aile+AD7 -> 520 | AE10: =0 -> 0 | AF10: =Longueur_fuselage-Couple8_Position -> 0 | AG10: =-AG9 -> -1023 | AH10: 0 | AJ10: 1 | AK10: =xg_ligne_ref -> -445 | AL10: =y_ligne_ref+Couple1_Hauteur_haut -> -256.6666667 | AN10: x bulle | AO10: y bulle | AQ10: =AQ9+G8 -> 217.5 | AR10: =AR9 -> -809.0909091 | AS10: =-AQ10 -> -217.5 | AT10: =AR10 -> -809.0909091 | AU10: =AU6 -> 40 | AV10: =AV6 -> -839.0909091
B11: Dièdre (°) | C11: 0 | F11: Flèche (mm) | G11: 0 | Y11: Hauteur bout nez haut | Z11: 40 | AC11: x aile g | AD11: y aile g | AE11: x stab g | AF11: y stab g | AG11: =IF(AG7>AG9,ROUND(AG7,0),ROUND(AG9,0)) -> 1023 | AH11: =-AG11 -> -1023 | AJ11: 2 | AK11: =xg_ligne_ref+Couple2_Position -> -365 | AL11: =y_ligne_ref+Couple2_Hauteur_haut -> -251.6666667 | AN11: =xg_ligne_ref+Position_début_bulle -> -175 | AO11: =y_ligne_ref+Hauteur_début_bulle -> -243.6666667 | AQ11: x derive | AR11: y derive | AS11: x train d | AT11: y train d | AU11: x fus aile | AV11: y fus aile
B12: En mm de haut au saumon | C12: =(SIN(RADIANS(Diedre)))*Env_panneau_aile -> 0 | D12: mm | F12: Corde emplanture | G12: =((2*(Env_stab))/A_stab)/(1+Eff_stab) -> 125 | H12: mm | Y12: Hauteur bout nez bas | Z12: 30 | AC12: =-AC7 -> 0 | AD12: =AD7 -> 750 | AE12: =-AE7 -> 0 | AF12: =AF7 -> 125 | AG12: x cone | AH12: y cone | AJ12: 3 | AK12: =xg_ligne_ref+Couple3_Position -> -305 | AL12: =y_ligne_ref+Couple3_Hauteur_haut -> -226.6666667 | AN12: =xg_ligne_ref+Position_milieu1_bulle -> -103 | AO12: =y_ligne_ref+Hauteur_milieu1_bulle -> -216.6666667 | AQ12: 0 | AR12: =AR6+Position_Derive_Verticale -> -794.0909091 | AS12: 0 | AT12: =AR6-Couple3_Hauteur_bas -> -839.0909091 | AU12: =Couple3_Largeur/2 -> 40 | AV12: =AR6-Couple3_Hauteur_bas -> -839.0909091
B13: Corde emplanture | C13: =((2*(Env_panneau_aile*2))/A_aile)/(1+Eff_aile) -> 230 | D13: mm | F13: Corde saumon | G13: =Eff_stab*Cemp_stab -> 125 | H13: mm | Y13: Couple 2 | AC13: =-AC8 -> -500 | AD13: =AD8 -> 750 | AE13: =-AE8 -> -200 | AF13: =AF8 -> 125 | AG13: =Diametre_cone/2 -> 10 | AH13: =Longueur_fuselage -> 890 | AJ13: 4 | AK13: =xg_ligne_ref+Couple4_Position -> -75 | AL13: =y_ligne_ref+Couple4_Hauteur_haut -> -226.6666667 | AN13: =xg_ligne_ref+Position_milieu2_bulle -> -15 | AO13: =y_ligne_ref+Hauteur_milieu2_bulle -> -236.6666667 | AQ13: 0 | AR13: =AR12+Hauteur_Derive -> -656.1598746 | AS13: =Voie_du_train -> 87.19953207 | AT13: =AT12-Hauteur_train_central -> -963.5909091 | AU13: =AU12 -> 40 | AV13: =AR6+Couple3_Hauteur_haut -> -739.0909091
B14: Corde saumon | C14: =Eff_aile*Cemp_aile -> 230 | D14: mm | F14: Volet de profondeur | Y14: Position | Z14: 80 | AC14: =-AC9 -> -500 | AD14: =AD9 -> 520 | AE14: =-AE9 -> -200 | AF14: =AF9 -> 0 | AG14: 0 | AH14: =Longueur_fuselage+Longueur_cone -> 930 | AJ14: 5 | AK14: =xg_ligne_ref+Couple5_Position -> -25 | AL14: =y_ligne_ref+Couple5_Hauteur_Haut -> -261.6666667 | AN14: =xg_ligne_ref+Position_fin_bulle -> 55 | AO14: =y_ligne_ref+Hauteur_fin_bulle -> -266.6666667 | AQ14: Hélice | AS14: train avant | AU14: =-AU12 -> -40 | AV14: =AV13 -> -739.0909091
B15: Aileron Fullspan | F15: %Surface du stab (%) | G15: 30 | Y15: Largeur | Z15: 80 | AC15: =-AC10 -> 0 | AD15: =AD10 -> 520 | AE15: =-AE10 -> 0 | AF15: =AF10 -> 0 | AG15: =-AG13 -> -10 | AH15: =Longueur_fuselage -> 890 | AJ15: 6 | AK15: =xg_ligne_ref+Couple6_Position -> 225 | AL15: =y_ligne_ref+Couple6_Hauteur_Haut -> -281.6666667 | AN15: x derive | AO15: y derive | AQ15: =(SIN(RADIANS(Angle_tourne_helice)))*((Diametre_Helice_Libre/2)*25.4) -> -86.61379173 | AR15: =AR6+(((Diametre_Helice_Libre/2)*25.4)*COS(RADIANS(Angle_tourne_helice))) -> -716.208989 | AS15: 0 | AT15: =AR6-Couple2_Hauteur_bas -> -839.0909091 | AU15: =AU14 -> -40 | AV15: =AV12 -> -839.0909091
B16: Prof en %cam (%) | C16: 15 | F16: Largeur | G16: =((Surface_volet_prof)*10000)/Env_stab -> 37.5 | H16: mm | Y16: Hauteur haut | Z16: 45 | AC16: x fus | AD16: y fus | AE16: x foyer m | AF16: y foyer m | AG16: x roue d | AH16: y roue d | AJ16: 7 | AK16: =xg_ligne_ref+Couple7_Position -> 320 | AL16: =y_ligne_ref+Couple7_Hauteur_haut -> -281.6666667 | AN16: =xd_ligne_ref+Position_Derive_Horizontale -> 520 | AO16: =y_ligne_ref+Position_Derive_Verticale -> -281.6666667 | AQ16: =-AQ15 -> 86.61379173 | AR16: =AR6-(((Diametre_Helice_Libre/2)*25.4)*COS(RADIANS(Angle_tourne_helice))) -> -901.9728292 | AS16: 0 | AT16: =AT15-Hauteur_roulette_de_nez -> -939.0909091 | AU16: =AU12 -> 40 | AV16: =AV12 -> -839.0909091
B17: Longueur | C17: =Env_panneau_aile -> 500 | D17: mm | F17: Dérive | Y17: Hauteur bas | Z17: 30 | AB17: 1 | AC17: =Couple1_Largeur/2 -> 40 | AD17: =Longueur_fuselage -> 890 | AE17: =Couple3_Largeur/2 -> 40 | AF17: =Longueur_fuselage-Couple3_Position-Foyer_modele_emp_TP -> 672.2001881 | AG17: =Voie_du_train -> 87.19953207 | AH17: =AH23+(Diametre_roues/2)+Inclinaison_train_central_mm -> 763.1836836 | AJ17: 8 | AK17: =xg_ligne_ref+Couple8_Position -> 445 | AL17: =y_ligne_ref+Couple8_Hauteur_haut -> -281.6666667 | AN17: =AN16 -> 520 | AO17: =AO16+Hauteur_Derive -> -143.7356322 | AQ17: x aile d | AR17: y aile d | AS17: x aile g | AT17: y aile g | AU17: x train g | AV17: y train g
B18: Largeur (profondeur) | C18: =(Aileron_full_pourcent_CAM/100)*Cam_Aile -> 34.5 | D18: mm | F18: %Surface du stab (%) | G18: 40 | Y18: Couple 3 emplanture Aile | AB18: 2 | AC18: =Couple2_Largeur/2 -> 40 | AD18: =Longueur_fuselage-Couple2_Position -> 810 | AE18: =-AE17 -> -40 | AF18: =AF17 -> 672.2001881 | AG18: =AG17 -> 87.19953207 | AH18: =AH23-(Diametre_roues/2)+Inclinaison_train_central_mm -> 698.1836836 | AJ18: 8 | AK18: =xg_ligne_ref+Couple8_Position -> 445 | AL18: =y_ligne_ref-Couple8_Hauteur_bas -> -326.6666667 | AN18: =AN17-Largeur_Haute_derive -> 430 | AO18: =AO17 -> -143.7356322 | AQ18: 0 | AR18: =AR6+Hauteur_aile -> -739.0909091 | AS18: =-AQ18 -> 0 | AT18: =AR18 -> -739.0909091 | AU18: 0 | AV18: =AT12 -> -839.0909091
B19: Aileron en bout d'aile | F19: Largeur Haute (mm) | G19: 90 | Y19: Position | Z19: =Longueur_du_nez-Longueur_cone -> 140 | AA19: mm | AB19: 3 | AC19: =Couple3_Largeur/2 -> 40 | AD19: =Longueur_fuselage-Couple3_Position -> 750 | AE19: x foyer a | AF19: y foyer a | AG19: x roue g | AH19: y roue g | AJ19: 7 | AK19: =xg_ligne_ref+Couple7_Position -> 320 | AL19: =y_ligne_ref-Couple7_Hauteur_bas -> -326.6666667 | AN19: =AN16-Largeur_Basse_derive -> 320 | AO19: =AO16 -> -281.6666667 | AQ19: =(AQ18+Env_panneau_aile+Couple3_Largeur/2)*COS(RADIANS(Diedre)) -> 540 | AR19: =AR18+Diedre_mm -> -739.0909091 | AS19: =-AQ19 -> -540 | AT19: =AR19 -> -739.0909091 | AU19: =-Voie_du_train -> -87.19953207 | AV19: =AT13 -> -963.5909091
B20: Prof en %cam (%) | C20: 15 | F20: Largeur Basse (mm) | G20: 200 | Y20: Largeur | Z20: 80 | AB20: 4 | AC20: =Couple4_Largeur/2 -> 40 | AD20: =Longueur_fuselage-Couple4_Position -> 520 | AE20: =AC19 -> 40 | AF20: =Longueur_fuselage-Couple3_Position-Foyer_aile_à_emp_bord_attaque -> 692.5 | AG20: =-AG17 -> -87.19953207 | AH20: =AH17 -> 763.1836836 | AJ20: 6 | AK20: =xg_ligne_ref+Couple6_Position -> 225 | AL20: =y_ligne_ref-Couple6_Hauteur_Bas -> -326.6666667 | AN20: =AN16 -> 520 | AO20: =AO16 -> -281.6666667 | AQ20: =AQ19 -> 540 | AR20: =AR19+Epaisseur_max_profil -> -711.8359091 | AS20: =-AQ20 -> -540 | AT20: =AR20 -> -711.8359091 | AU20: x roue g | AV20: y roue g
B21: % env demi-aile (%) | C21: 90 | F21: Position horizontale (mm) | G21: 75 | Y21: Hauteur haut | Z21: 70 | AB21: 5 | AC21: =Couple5_Largeur/2 -> 40 | AD21: =Longueur_fuselage-Couple5_Position -> 470 | AE21: =-AC19 -> -40 | AF21: =AF20 -> 692.5 | AG21: =-AG18 -> -87.19953207 | AH21: =AH18 -> 698.1836836 | AJ21: 5 | AK21: =xg_ligne_ref+Couple5_Position -> -25 | AL21: =y_ligne_ref-Couple5_Hauteur_Bas -> -326.6666667 | AN21: x volet dir | AO21: y volet dir | AQ21: =AQ18 -> 0 | AR21: =AR18+Epaisseur_max_profil -> -711.8359091 | AS21: =-AQ21 -> 0 | AT21: =AR21 -> -711.8359091 | AU21: =AU19 -> -87.19953207 | AV21: =AT6 -> -931.0909091
B22: Longueur | C22: =(Aileron_bout_pourcent_env_demi_aile/100)*Env_panneau_aile -> 450 | D22: mm | F22: Position verticale (mm) | G22: 15 | Y22: Hauteur bas | Z22: 30 | AB22: 6 | AC22: =Couple6_Largeur/2 -> 23 | AD22: =Longueur_fuselage-Couple6_Position -> 220 | AE22: x foyer s | AF22: y foyer s | AG22: x centrage | AH22: y centrage | AJ22: 4 | AK22: =xg_ligne_ref+Couple4_Position -> -75 | AL22: =y_ligne_ref-Couple4_Hauteur_bas -> -326.6666667 | AN22: =AN17-Largeur_volet_direction -> 462 | AO22: =AO16 -> -281.6666667 | AS22: roulette queue | AU22: =AU19 -> -87.19953207 | AV22: =AT7 -> -996.0909091
B23: Largeur (profondeur) | C23: =(Aileron_bout_pourcent_CAM/100)*Cam_Aile -> 34.5 | D23: mm | F23: Hauteur | G23: =(20000*G59)/(Largeur_Basse_derive+Largeur_Haute_derive) -> 137.9310345 | H23: mm | Y23: Couple 4 fuite Aile | AB23: 7 | AC23: =Couple7_Largeur/2 -> 17.5 | AD23: =Longueur_fuselage-Couple7_Position -> 125 | AE23: =Couple7_Largeur/2 -> 17.5 | AF23: =Cam_Stab-Foyer_stab_à_emp_bord_attaque -> 93.75 | AG23: 0 | AH23: =Longueur_fuselage-Couple3_Position-CG -> 683.7001881 | AJ23: 3 | AK23: =xg_ligne_ref+Couple3_Position -> -305 | AL23: =y_ligne_ref-Couple3_Hauteur_bas -> -326.6666667 | AN23: =AN22 -> 462 | AO23: =AO16+Hauteur_Volet_Direction -> -143.7356322 | AR23: sin(alpha) | AS23: 0 | AT23: =AR6-Couple8_Hauteur_bas -> -839.0909091 | AU23: roue avant
B24: Modèle | F24: Volet de direction | Y24: Position | Z24: =Couple3_Position+ROUND(Cemp_aile,0) -> 370 | AA24: mm | AB24: 8 | AC24: =Couple8_Largeur/2 -> 10 | AD24: =Longueur_fuselage-Couple8_Position -> 0 | AE24: =-AE23 -> -17.5 | AF24: =AF23 -> 93.75 | AG24: x roue ar | AH24: y roue ar | AJ24: 2 | AK24: =xg_ligne_ref+Couple2_Position -> -365 | AL24: =y_ligne_ref-Couple2_Hauteur_bas -> -326.6666667 | AN24: x aile | AO24: y aile | AP24: % de la corde a | AR24: =Epaisseur_max_profil/Position_epaisseur_max_profil -> 0.49375 | AS24: 0 | AT24: =AT23-Hauteur_roulette_queue -> -888.0441765 | AU24: 0 | AV24: =AT16+(Diametre_roues/2) -> -906.5909091
B25: Vstab | C25: =(Bras_Levier*Surface_Stab)/(Cam_Aile*Surface_Alaire) -> 0.5281190926 | F25: % Surface direction (%) | G25: 40 | Y25: Largeur | Z25: 80 | AB25: 8 | AC25: =-Couple8_Largeur/2 -> -10 | AD25: =Longueur_fuselage-Couple8_Position -> 0 | AE25: x roue av | AF25: y roue av | AG25: 0 | AH25: 0 | AJ25: 1 | AK25: =fus_x1 -> -445 | AL25: =y_ligne_ref-Couple1_Hauteur_bas -> -326.6666667 | AN25: =xg_ligne_ref+Longueur_du_nez-Longueur_cone -> -305 | AO25: =y_ligne_ref+Hauteur_aile+Incidence_aile_mm -> -220.7029517 | AP25: 0 | AQ25: =(AP25*Cam_Aile)/100 -> 0 | AR25: =$AR$24*AQ25 -> 0 | AU25: 0 | AV25: =AT16-(Diametre_roues/2) -> -971.5909091
B26: Vdir | C26: =(BL_derive*Surface_Derive)/(Surface_Alaire*(Env_panneau_aile)) -> 0.09834582709 | F26: Hauteur | G26: =Hauteur_Derive -> 137.9310345 | H26: mm | Y26: Hauteur haut | Z26: 70 | AB26: 7 | AC26: =-Couple7_Largeur/2 -> -17.5 | AD26: =Longueur_fuselage-Couple7_Position -> 125 | AE26: 0 | AF26: =AH23+(Diametre_roues/2)+Empatement -> 856.2001881 | AG26: 0 | AH26: =Diametre_roues -> 65 | AK26: x centrage | AL26: y centrage | AN26: =$AN$25+AQ26 -> -293.5 | AO26: =$AO$25+(AR26/2) -> -217.8638892 | AP26: 5 | AQ26: =(AP26*Cemp_aile)/100 -> 11.5 | AR26: =$AR$24*AQ26 -> 5.678125
B27: Marge statique (%) | C27: 5 | F27: Largeur | G27: =(Surface_volet_direction*10000)/Hauteur_Volet_Direction -> 58 | H27: mm | Y27: Hauteur bas | Z27: 30 | AB27: 6 | AC27: =-Couple6_Largeur/2 -> -23 | AD27: =Longueur_fuselage-Couple6_Position -> 220 | AE27: 0 | AF27: =AH23-(Diametre_roues/2)+Empatement -> 791.2001881 | AG27: centrage sur ailes | AK27: =xg_ligne_ref+Couple3_Position+CG -> -238.7001881 | AL27: =y_ligne_ref -> -296.6666667 | AN27: =$AN$25+AQ27 -> -270.5 | AO27: =$AO$25+(AR27/2) -> -212.1857642 | AP27: 15 | AQ27: 34.5 | AR27: 17.034375
B28: CG en % de cam aile TP | C28: =CG_TP_pourcent_cam -> 28.82600517 | D28: % | F28: Calages moteur (°) | Y28: Couple 5 | AB28: 5 | AC28: =-Couple5_Largeur/2 -> -40 | AD28: =Longueur_fuselage-Couple5_Position -> 470 | AE28: x cam s d | AF28: y cam s d | AG28: =AC34 -> 250 | AH28: =Longueur_fuselage-Couple3_Position-CG -> 683.7001881 | AK28: x roue | AL28: y roue | AN28: =$AN$25+AQ28 -> -249.8 | AO28: =$AO$25+(AR28/2) -> -207.0754517 | AP28: =Distance_epaisseur_ma -> 24 | AQ28: 55.2 | AR28: 27.255
B29: CG à l'emplanture TP | C29: =CG_TP -> 66.29981189 | D29: mm | F29: Anticouple | G29: 1 | Y29: Position | Z29: 420 | AB29: 4 | AC29: =-Couple4_Largeur/2 -> -40 | AD29: =Longueur_fuselage-Couple4_Position -> 520 | AE29: =(Distance_Cam_Emp_Stab) -> 100 | AF29: =G12-G50-G53 -> 0 | AG29: =-AG28 -> -250 | AH29: =AH28 -> 683.7001881 | AJ29: 1 | AK29: =AN45 -> -285.6836836 | AL29: =AO45+(Diametre_roues/2) -> -418.6666667 | AN29: =$AN$28 -> -249.8 | AO29: =$AO$28 -> -207.0754517 | AP29: 50 | AQ29: 115 | AR29: 56.78125
B30: Cz aile choisi | C30: 0.3 | F30: en mm au bout de l'hélice | G30: =(SIN(RADIANS(Anticouple)))*((Diametre_Helice_Libre/2)*25.4) -> 2.216455618 | Y30: Largeur | Z30: 80 | AB30: 3 | AC30: =-Couple3_Largeur/2 -> -40 | AD30: =Longueur_fuselage-Couple3_Position -> 750 | AE30: =AE29 -> 100 | AF30: =G12-G53 -> 125 | AG30: x prof d | AH30: y prof d | AJ30: 2 | AK30: =AK29+SIN(RADIANS(45))*(Diametre_roues/2) -> -262.7027132 | AL30: =AO45+SIN(RADIANS(45))*(Diametre_roues/2) -> -428.1856963 | AN30: =$AN$28 -> -249.8 | AO30: =$AO$28 -> -207.0754517 | AP30: 75 | AQ30: 172.5 | AR30: 85.171875
B31: Alpha0 du profil | C31: -2.5 | F31: Piqueur | G31: 1 | Y31: Hauteur haut | Z31: 35 | AB31: 2 | AC31: =-Couple2_Largeur/2 -> -40 | AD31: =Longueur_fuselage-Couple2_Position -> 810 | AE31: x cam s g | AF31: y cam s g | AG31: =AE8 -> 200 | AH31: =AF9+G16 -> 37.5 | AJ31: 3 | AK31: =AN45+(Diametre_roues/2) -> -253.1836836 | AL31: =AO45 -> -451.1666667 | AN31: =$AN$25+AQ31 -> -75 | AO31: =AO25-Incidence_aile_mm -> -226.6666667 | AP31: 100 | AQ31: 230 | AR31: 113.5625
B32: cm0 du profil | C32: -0.05 | F32: en mm au bout de l'hélice | G32: =(SIN(RADIANS(Piqueur)))*((Diametre_Helice_Libre/2)*25.4) -> 2.216455618 | Y32: Hauteur bas | Z32: 30 | AB32: 1 | AC32: =-Couple1_Largeur/2 -> -40 | AD32: =Longueur_fuselage -> 890 | AE32: =-AE29 -> -100 | AF32: =G12-G50-G53 -> 0 | AG32: =AE10 -> 0 | AH32: =AF10+G16 -> 37.5 | AJ32: 4 | AK32: =AK29+COS(RADIANS(45))*(Diametre_roues/2) -> -262.7027132 | AL32: =AL31-SIN(RADIANS(45))*(Diametre_roues/2) -> -474.1476371 | AN32: =$AN$28 -> -249.8 | AO32: =$AO$34 -> -234.3304517 | AP32: 75 | AQ32: 172.5 | AR32: 85.171875
B33: Incidence aile (°) | C33: =(9.1*((A_aile + 2) / A_aile) * CzaileChoisi)+alpha0 -> 1.4858 | F33: Fuselage vue de dessus (mm) | Y33: Couple 6 | AC33: x cam a d | AD33: y cam a d | AE33: =-AE30 -> -100 | AF33: =G12-G53 -> 125 | AG33: x prof g | AH33: y prof g | AJ33: 5 | AK33: =AN45 -> -285.6836836 | AL33: =AO45-(Diametre_roues/2) -> -483.6666667 | AN33: =$AN$28 -> -249.8 | AO33: =$AO$34 -> -234.3304517 | AP33: 50 | AQ33: 115 | AR33: 56.78125
B34: en mm | C34: =(SIN(RADIANS(Incidence_aile)))*Cemp_aile -> 5.963715006 | F34: Longueur du nez | G34: 180 | Y34: Position | Z34: 670 | AC34: =(Distance_Cam_Emp_Aile) -> 250 | AD34: =Longueur_fuselage-Couple3_Position-Cam_Aile-Fleche_Cam_Aile -> 520 | AE34: x cam s | AF34: x cam s | AG34: =-AG31 -> -200 | AH34: =AH31 -> 37.5 | AJ34: 6 | AK34: =AK29-COS(RADIANS(45))*(Diametre_roues/2) -> -308.664654 | AL34: =AL31-SIN(RADIANS(45))*(Diametre_roues/2) -> -474.1476371 | AN34: =$AN$25+AQ34 -> -249.8 | AO34: =$AO$25-(AR34/2) -> -234.3304517 | AP34: =Distance_epaisseur_ma -> 24 | AQ34: 55.2 | AR34: 27.255
B35: V longi (°) | C35: =VLongi_TP -> -0.6366329368 | F35: Longueur fuselage | G35: 890 | Y35: Largeur | Z35: 46 | AC35: =AC34 -> 250 | AD35: =Longueur_fuselage-Couple3_Position-Fleche_Cam_Aile -> 750 | AE35: 0 | AF35: =G12-G50-G53 -> 0 | AG35: =-AG32 -> 0 | AH35: =AH32 -> 37.5 | AJ35: 7 | AK35: =AN45-(Diametre_roues/2) -> -318.1836836 | AL35: =AO45 -> -451.1666667 | AN35: =$AN$25+AQ35 -> -270.5 | AO35: =$AO$25-(AR35/2) -> -229.2201392 | AP35: 15 | AQ35: 34.5 | AR35: 17.034375
B36: Incidence stab (°) | C36: =Incidence_aile-VLongi -> 2.122432937 | F36: Mise en croix | Y36: Hauteur haut | Z36: 15 | AC36: x cam a g | AD36: y cam a g | AE36: 0 | AF36: =G12-G53 -> 125 | AG36: Hélice | AJ36: 8 | AK36: =AK29-COS(RADIANS(45))*(Diametre_roues/2) -> -308.664654 | AL36: =AO45+SIN(RADIANS(45))*(Diametre_roues/2) -> -428.1856963 | AN36: =$AN$25+AQ36 -> -293.5 | AO36: =$AO$25-(AR36/2) -> -223.5420142 | AP36: 5 | AQ36: 11.5 | AR36: 5.678125
B37: en mm | C37: =(SIN(RADIANS(Incidence_stab)))*Cemp_stab -> 4.629371443 | F37: mise en croix aile | G37: =SQRT(((AH46)^2)+((Env_complete/2)^2)) -> 721.3875519 | H37: mm | Y37: Hauteur bas | Z37: 30 | AC37: =-AC34 -> -250 | AD37: =AD34 -> 520 | AE37: x A bout d | AF37: y A bout d | AG37: =-((Diametre_Helice_Libre/2)*25.4) -> -127 | AH37: =AH13+Anticouple_mm -> 892.2164556 | AJ37: 9 | AK37: =AK29 -> -285.6836836 | AL37: =AL29 -> -418.6666667 | AN37: =$AN$25+AQ37 -> -305 | AO37: =$AO$25-(AR37/2) -> -220.7029517 | AP37: 0 | AQ37: 0 | AR37: 0
B38: Masses | F38: mise en croix stab | G38: =SQRT(((Env_stab/2)^2)+((Longueur_fuselage-AF8)^2)) -> 790.7117047 | H38: mm | Y38: Couple 7 emplanture Stab | AC38: =-AC35 -> -250 | AD38: =AD35 -> 750 | AE38: =AC9 -> 500 | AF38: =AD9+Aileron_bout_Largeur_bout_aile -> 554.5 | AG38: =((Diametre_Helice_Libre/2)*25.4) -> 127 | AH38: =AH15-Anticouple_mm -> 887.7835444 | AK38: Roue avant | AN38: x roulette q | AO38: y roulette q
B39: Charge Alaire souhaitée (g/dm²) | C39: 55 | F39: Profil | Y39: Position | Z39: =Longueur_fuselage-ROUND(Cemp_stab,0) -> 765 | AA39: mm | AC39: x cam a | AD39: y cam a | AE39: =AE38-((AC9-AC10)*(Aileron_bout_pourcent_env_demi_aile/100)) -> 50 | AF39: =AF38+AD47 -> 554.5 | AG39: x A full d | AH39: y A full d | AJ39: 1 | AK39: =AN49 -> -401.7870072 | AL39: =AO49+(Diametre_roues/2) -> -394.1666667 | AN39: =xd_ligne_ref-Largeur_volet_direction -> 387 | AO39: =AL18 -> -326.6666667
B40: Masse maxi souhaitée calculée | C40: =Surface_Alaire*Charge_Alaire -> 1265 | D40: g | F40: Epaisseur relative du profil (%) | G40: 11.85 | Y40: Largeur | Z40: 35 | AC40: 0 | AD40: =Longueur_fuselage-Couple3_Position-Fleche_Cam_Aile -> 750 | AE40: =AE39 -> 50 | AF40: =AF39-Aileron_bout_Largeur_bout_aile -> 520 | AG40: =AC10 -> 0 | AH40: =AD10+Aileron_full_Largeur -> 554.5 | AJ40: 2 | AK40: =AK39+SIN(RADIANS(45))*(Diametre_roues/2) -> -378.8060368 | AL40: =AO49+SIN(RADIANS(45))*(Diametre_roues/2) -> -403.6856963 | AN40: =xd_ligne_ref -> 445 | AO40: =AO39-Hauteur_roulette_queue -> -375.6199341
B41: Electronique | F41: Epaisseur maxi du profil | G41: =(Epaisseur_profil*Cemp_aile)/100 -> 27.255 | H41: mm | Y41: Hauteur haut | Z41: 15 | AC41: 0 | AD41: =AD40-Cam_Aile -> 520 | AE41: x A bout g | AF41: y A bout g | AG41: =AC9 -> 500 | AH41: =AD9+Aileron_full_Largeur -> 554.5 | AJ41: 3 | AK41: =AN49+(Diametre_roues/2) -> -369.2870072 | AL41: =AO49 -> -426.6666667 | AN41: Roulette queue
B42: Masse moteur | C42: =Masse_Moteur_Choisie -> 130 | D42: g | F42: Position épaisseur maxi (%) | G42: 24 | Y42: Hauteur bas | Z42: 30 | AC42: Calculs pour A bout: | AE42: =-AE38 -> -500 | AF42: =AF38 -> 554.5 | AG42: x A full g | AH42: y A full g | AJ42: 4 | AK42: =AK39+COS(RADIANS(45))*(Diametre_roues/2) -> -378.8060368 | AL42: =AL41-SIN(RADIANS(45))*(Diametre_roues/2) -> -449.6476371 | AN42: =xd_ligne_ref -> 445 | AO42: =AO40 -> -375.6199341
B43: Masse Accu | C43: =Masse_Reelle_Accu -> 138 | D43: g | F43: Position épaisseur maxi | G43: =(Distance_epaisseur_ma*Cemp_aile)/100 -> 55.2 | H43: mm | Y43: Couple 8 queue | AC43: a | AD43: =AD10-AD9 -> 0 | AE43: =-AE39 -> -50 | AF43: =AF39 -> 554.5 | AG43: =-AG40 -> 0 | AH43: =-C13+AD7+C18 -> 554.5 | AJ43: 5 | AK43: =AN49 -> -401.7870072 | AL43: =AO49-(Diametre_roues/2) -> -459.1666667 | AN43: x train | AO43: y train
B44: Masse des servos | C44: 50 | D44: g | F44: Cz profil | G44: =CzaileChoisi * ((2 / A_aile) + 1) -> 0.438 | Y44: Position | Z44: =Longueur_fuselage -> 890 | AA44: mm | AC44: b | AD44: =AE38+AC10 -> 500 | AE44: =-AE40 -> -50 | AF44: =AF40 -> 520 | AG44: =-AG41 -> -500 | AH44: =AD14+C18 -> 554.5 | AJ44: 6 | AK44: =AK39-COS(RADIANS(45))*(Diametre_roues/2) -> -424.7679776 | AL44: =AL41-SIN(RADIANS(45))*(Diametre_roues/2) -> -449.6476371 | AN44: =xg_ligne_ref+Couple3_Position+CG -> -238.7001881 | AO44: =y_ligne_ref-Couple3_Hauteur_bas -> -326.6666667
B45: Masse contrôleur ESC | C45: 36 | D45: g | F45: Détail Modèle | Y45: Largeur | Z45: 20 | AC45: tanA | AD45: =AD43/AD44 -> 0 | AE45: Mise en croix stab (d & g) | AG45: Mise en croix aile (d & g) | AJ45: 7 | AK45: =AN49-(Diametre_roues/2) -> -434.2870072 | AL45: =AO49 -> -426.6666667 | AN45: =xg_ligne_ref+Couple3_Position+CG-AO46 -> -285.6836836 | AO45: =AO44-Hauteur_train_central -> -451.1666667
B46: Masse récepteur | C46: 10 | D46: g | F46: Bras de levier | G46: =Longueur_fuselage-Longueur_du_nez-Foyer_aile_à_emp_bord_attaque-Cemp_stab+Foyer_stab_à_emp_bord_attaque -> 558.75 | H46: mm | Y46: Hauteur haut | Z46: 15 | AC46: b' | AD46: =AD44-AE39 -> 450 | AE46: =AE8 -> 200 | AF46: =AF8 -> 125 | AG46: =AC9 -> 500 | AH46: =AD9 -> 520 | AJ46: 8 | AK46: =AK39-COS(RADIANS(45))*(Diametre_roues/2) -> -424.7679776 | AL46: =AO49+SIN(RADIANS(45))*(Diametre_roues/2) -> -403.6856963 | AN46: inclinaison | AO46: =Inclinaison_train_central_mm -> 46.98349551
B47: Masse cône | C47: 22 | D47: g | F47: Levier de stab | G47: =Longueur_fuselage-Longueur_du_nez-Cemp_stab -> 585 | H47: mm | Y47: Hauteur bas | Z47: 30 | AC47: a' | AD47: =AD45*AD46 -> 0 | AE47: 0 | AF47: =Longueur_fuselage -> 890 | AG47: 0 | AH47: 0 | AJ47: 9 | AK47: =AK39 -> -401.7870072 | AL47: =AL39 -> -394.1666667 | AN47: x train avant | AO47: y train avant
B48: Masse hélice | C48: 9 | D48: g | F48: Foyer mod / emp TP | G48: =Foyer_emp_TP -> 77.79981189 | H48: mm | Y48: Bulle (cotes en mm) | AE48: =AE13 -> -200 | AF48: =AF13 -> 125 | AG48: =AC14 -> -500 | AH48: =AD14 -> 520 | AK48: x stab | AL48: y stab | AN48: =AN44-Empatement -> -378.7001881 | AO48: =y_ligne_ref-Couple2_Hauteur_bas -> -326.6666667
B49: Masse chaine électrique | C49: =SUM(C42:C48) -> 395 | D49: g | F49: Détail Stab | Y49: Position début bulle | Z49: 270 | AE49: 0 | AF49: =Longueur_fuselage -> 890 | AG49: 0 | AH49: 0 | AK49: =xd_ligne_ref -> 445 | AL49: =y_ligne_ref+Hauteur_stab -> -296.6666667 | AN49: =AN48-Inclinaison__roulette_de_nez_mm -> -401.7870072 | AO49: =AO48-Hauteur_roulette_de_nez -> -426.6666667
B50: Masse longeron aile | C50: 35 | D50: g | F50: Cam stab | G50: =(2/3)*(((Cemp_stab*Cemp_stab)+(Cemp_stab*Csau_stab)+(Csau_stab*Csau_stab))/(Cemp_stab+Csau_stab)) -> 125 | H50: mm | Y50: Hauteur début bulle | Z50: 53 | AK50: =xd_ligne_ref-Cemp_stab -> 320 | AL50: =y_ligne_ref+Hauteur_stab+Incidence_stab_mm -> -292.0372952 | AN50: Contrôle taille Hélice
B51: Accastillage divers | C51: 430 | D51: g | F51: Distance Cam / Emplanture | G51: =IF(Cemp_stab=Csau_stab,Env_stab/4,(Env_stab/2)*((Cemp_stab-Cam_Stab)/(Cemp_stab-Csau_stab))) -> 100 | H51: mm | Y51: Position milieu1 bulle | Z51: 342 | AK51: Hélice | AN51: h train total | AO51: =Couple3_Hauteur_bas+Hauteur_train_central+(Diametre_roues/2) -> 187
B52: Masse des équipements | C52: =Masse_Chaine_Electrique+Mass_Longeron_Aile+Accastillage -> 860 | D52: g | F52: Distance Cam / saumon | G52: =IF(Cemp_stab=Csau_stab,Env_stab/4,((Env_stab/2)/3)*(((2*Cemp_stab)+(Csau_stab))/(Cemp_stab+Csau_stab))) -> 100 | H52: mm | Y52: Hauteur milieu1 bulle | Z52: 80 | AK52: =AN7+Piqueur_mm -> -442.7835444 | AL52: =AO8-((Diametre_Helice_Libre/2)*25.4) -> -423.6666667 | AN52: h helice | AO52: =((Diametre_Helice_Libre/2)*25.4) -> 127
B53: Masse structure calculée | C53: =Masse_structure_estimee -> 390.1734458 | D53: g | F53: Flèche Cam | G53: =(1/3)*Fleche_stab*((Cemp_stab+(2*Csau_stab))/(Cemp_stab+Csau_stab)) -> 0 | H53: mm | Y53: Position milieu2 bulle | Z53: 430 | AK53: =AN9-Piqueur_mm -> -447.2164556 | AL53: =AO8+((Diametre_Helice_Libre/2)*25.4) -> -169.6666667 | AN53: marge | AO53: =IF(Hauteur_train_central=0,0,AO51-AO52) -> 60
B54: Masse totale calculée | C54: =Masse_des_équipements+Masse_Structure_Modele -> 1250.173446 | D54: g | F54: Foyer stab | G54: =Cam_Stab/4 -> 31.25 | H54: mm | Y54: Hauteur milieu2 bulle | Z54: 60
B55: Charge alaire réelle | C55: =C54/Surface_Alaire -> 54.35536721 | D55: g/dm² | F55: Foyer stab à emp / bord attaque | G55: =Foyer_stab+Fleche_Cam_Stab -> 31.25 | H55: mm | Y55: Position fin bulle | Z55: 500
B56: Marge de masse | C56: =Masse_Maxi-Masse_des_équipements-Masse_Structure_Modele -> 14.82655423 | D56: g | F56: Volet de profondeur | Y56: Hauteur fin bulle | Z56: 30
B57: Détail Aile | F57: Surface volet prof | G57: =(Prof_pourcent_Surface_stab/100)*Surface_Stab -> 1.5 | H57: dm² | Y57: Train
B58: Cam aile | C58: =(2/3)*(((Cemp_aile*Cemp_aile)+(Cemp_aile*Csau_aile)+(Csau_aile*Csau_aile))/(Cemp_aile+Csau_aile)) -> 230 | D58: mm | F58: Détail Dérive | Y58: Garde au sol | Z58: 60 | AA58: mm
B59: Distance Cam / Emplanture | C59: =IF(Cemp_aile=Csau_aile,Env_panneau_aile/2,Env_panneau_aile*((Cemp_aile-Cam_Aile)/(Cemp_aile-Csau_aile))) -> 250 | D59: mm | F59: Surface dérive | G59: =(Derive_pourcent_Surface_stab/100)*Surface_Stab -> 2 | H59: dm² | Y59: Diamètre des roues (mm) | Z59: 65
B60: Distance Cam / saumon | C60: =IF(Cemp_aile=Csau_aile,Env_panneau_aile/2,(Env_panneau_aile/3)*(((2*Cemp_aile)+(Csau_aile))/(Cemp_aile+Csau_aile))) -> 250 | D60: mm | F60: Cam dérive | G60: =(2/3)*(((Largeur_Basse_derive*Largeur_Basse_derive)+(Largeur_Basse_derive*Largeur_Haute_derive)+(Largeur_Haute_derive*Largeur_Haute_derive))/(Largeur_Basse_derive+Largeur_Haute_derive)) -> 151.954023 | H60: mm | Y60: Angle train principal / axe vertical | Z60: 25 | AA60: °
B61: Flèche Cam /Emplanture | C61: =(1/3)*Fleche_aile*((Cemp_aile+(2*Csau_aile))/(Cemp_aile+Csau_aile)) -> 0 | D61: mm | F61: Foyer derive | G61: =Cam_derive/4 -> 37.98850575 | H61: mm | K61: CG en % de cam aile moi | N61: =(100*N67)/(Cam_Aile) -> 35.67231351 | O61: % | Y61: Inclinaison du train principal (°) | Z61: 20 | AC61: modifier les commentaires train
B62: Foyer aile | C62: =Cam_Aile/4 -> 57.5 | D62: mm | F62: Bras de levier dérive | G62: =Longueur_fuselage-Longueur_du_nez-Foyer_aile_à_emp_bord_attaque-Largeur_Basse_derive+Foyer_Derive+Position_Derive_Horizontale -> 565.4885057 | H62: mm | K62: CG à l'emplanture moi | N62: =Foyer_modele_emp-((Marge_statique*Foyer_modele_emp)/100) -> 82.04632107 | O62: mm | Y62: Hauteur du train principal (mm) | Z62: =(Garde_au_sol+Hauteur_demi_helice)-Couple3_Hauteur_bas-(Diametre_roues/2) -> 124.5 | AA62: mm | AC62: modifier les actions code pour dessin
B63: Foyer aile à emp / bord attaque | C63: =Fleche_Cam_Aile+Foyer_aile -> 57.5 | D63: mm | F63: Volet de direction | K63: Influence fus en % | N63: 5 | O63: % | Y63: Longueur de la jambe du train | Z63: =(Hauteur_train_central/COS(RADIANS(Angle_train_principal))) -> 137.3705509 | AA63: mm
B64: Aileron Fullspan | F64: Surface volet direction | G64: =(G25/100)*Surface_Derive -> 0.8 | H64: dm² | K64: Influence fus | N64: =Influence_fus_en_pourcent*Cam_Aile/100 -> 11.5 | O64: mm | Y64: Voie minimum du train / axe | Z64: =(TAN(RADIANS(25)))*(Hauteur_train_central+(Diametre_roues/2)+Couple3_Hauteur_bas) -> 87.19953207 | AA64: mm
B65: Surface par demi aile | C65: =(Aileron_full_Longueur*Aileron_full_Largeur)/10000 -> 1.725 | D65: dm² | K65: Foyer du modèle moi | N65: =(Cam_Aile*(0.25+(Vstab*((A_stab*(A_aile-2))/(A_aile*(A_stab+2)))))-Influence_Fus) -> 86.36454849 | O65: mm | Y65: Voie minimum complète | Z65: =Voie_du_train*2 -> 174.3990641 | AA65: mm | AC65: juste pour le dessin? | AE65: voir ici l'inclinaison à quoi elle sert, on a deux inclinaisons
B66: Aileron en bout d'aile | K66: Foyer mod / emp moi | N66: =Foyer_Modele+Fleche_Cam_Aile -> 86.36454849 | O66: mm | Y66: écartement jambe/axe vertical CG | Z66: =SIN(RADIANS(Inclinaison_train_central))*Longueur_Jambe_Train -> 46.98349551 | AA66: mm | AE66: 25° pour la largeur
B67: Surface par demi aile | C67: =((Aileron_bout_Largeur_bout_aile+Aileron_bout_Largeur_bout_aile)*Aileron_bout_Longueur)/20000 -> 1.5525 | D67: dm² | K67: CG mod sur cam aile moi | N67: =Foyer_Modele-((Marge_statique*Foyer_Modele)/100) -> 82.04632107 | O67: mm | Y67: Hauteur roulette de nez (mm) | Z67: 100 | AC67: faux ça | AE67: et ici pour l'axe avant
Y68: Inclinaison roulette de nez en ° | Z68: 13 | AE68: comment groper les deux?
Y69: Longueur de la jambe du train | Z69: =(Hauteur_roulette_de_nez/COS(RADIANS(Inclinaison__roulette_de_nez))) -> 102.6304108 | AA69: mm
Y70: par rapport à l'axe vertical du CG | Z70: =SIN(RADIANS(Inclinaison__roulette_de_nez))*Z69 -> 23.08681911 | AA70: mm
Y71: Inclinaison roulette de queue en ° | Z71: 9 | AA71: =TAN(RADIANS(Inclinaison_roulette_queue))*(Longueur_fuselage-Longueur_du_nez-CG+Inclinaison_train_central_mm)+Couple8_Hauteur_bas -> 139.3935487
Y72: Hauteur max roulette de queue | Z72: =Couple3_Hauteur_bas+Hauteur_train_central+(Diametre_roues/2)-((SIN(RADIANS(Inclinaison_roulette_queue))*(Longueur_fuselage-Longueur_du_nez-CG+Inclinaison_train_central_mm))+Couple8_Hauteur_bas) -> 48.95326744 | AA72: mm
Y73: Empattement (mm) | Z73: 140
B100: Nom de la série graphique | C100: numéro
B101: Aile droite | C101: 1
B102: Stab droit | C102: 2
B103: CG à l'emplanture | C103: 3
B104: Foyer aile | C104: 4
B105: Foyer mod / emp TP | C105: 5
B106: Foyer stab | C106: 6
B107: Cam aile droite | C107: 7
B108: Cam aile gauche | C108: 8
B109: Cam stab droit | C109: 9
B110: Cam stab gauche | C110: 10
B111: Aile gauche | C111: 11
B112: Cam Aile | C112: 12
B113: Cam Stab | C113: 13
B114: Aileron full gauche | C114: 14
B115: Aileron full droit | C115: 15
B116: Aileron bout gauche | C116: 16
B117: Aileron bout droit | C117: 17
B118: Profondeur gauche | C118: 18
B119: Profondeur droite | C119: 19
B120: Ligne de référence fuselage | C120: 20
B121: Cone_vue_dessus | C121: 21
B122: Cone vu de profil | C122: 22
B123: Bulle | C123: 23
B124: Derive | C124: 24
B125: Volet de direction | C125: 25
B126: aile de profil | C126: 26
B127: Stab de profil | C127: 27
B128: CG vu de profil | C128: 28
B129: Train Bicycle | C129: 29
B130: Roue_bicycle | C130: 30
B131: Train roulette de queue | C131: 31
B132: Roulette de queue | C132: 32
B133: Train avant | C133: 33
B134: Roue avant | C134: 34
B135: Stab gauche | C135: 35
B136: roue droite de dessus | C136: 36
B137: roue gauche de dessus | C137: 37
B138: ligne reference fuselage de face | C138: 38
B139: aile droite de face | C139: 39
B140: aile gauche de face | C140: 40
B141: stab droit de face | C141: 41
B142: stab gauche de face | C142: 42
B143: Derive de face | C143: 43
B144: Train droit de face | C144: 44
B145: Train gauche de face | C145: 45
B146: Roue principale droite de face | C146: 46
B147: Roue principale gauche de face | C147: 47
B148: Train avant de face | C148: 48
B149: Roue avant de face | C149: 49
B150: Roulette queue de face | C150: 50
B151: Helice vue de profil | C151: 51
B152: Helice vue de dessus | C152: 52
B153: Helice vue de face | C153: 53
B154: CG aile droite | C154: 54
B155: CG aile gauche | C155: 55
B156: Mise en croix stab droit | C156: 56
B157: Mise en croix stab gauche | C157: 57
B158: mise en croix aile droite | C158: 58
B159: mise en croix aile gauche | C159: 59
B160: roue avant de dessus | C160: 60
B161: roue arriere de dessus | C161: 61
B162: Fuselage vu de profil | C162: 62
B163: fuselage nez de face | C163: 63
B164: fuselage aile de face | C164: 64
B165: fuselage vu de dessus | C165: 65

Sheet Masses
B2: Eléments | C2: Type | D2: Matériau | E2: Surface | F2: Volume | G2: Masse | I2: Matériaux | R2: Largeur couple gauche (mm) | S2: Largeur couple droit (mm) | T2: Position relative (mm) | U2: Surface horizontale pour mode caisse (dm²) | V2: Hauteur couple gauche (mm) | W2: Hauteur couple droit (mm) | X2: Surface verticale pour mode caisse et planche (dm²) | Y2: Surface totale pour mode caisse (dm²) | Z2: Volume pour mode bloc (dm3) | AA2: Volume pour mode bloc (dm3) | AC2: Aile
B3: Aile | C3: Double planche | D3: Coro cirque/panneaux | E3: =IF(C3="bloc","-",(IF(C3="planche",Surface_Alaire,Surface_Alaire*2))) -> 46 | F3: =IF(C3="bloc",(Epaisseur_max_profil/175)*Surface_Alaire,"-") -> - | G3: =IF($D$3="",0,IF($C$3="bloc",VLOOKUP($D3,$I$4:$N$23,6,FALSE)*F3,VLOOKUP($D3,$I$25:$N$44,6,FALSE)*E3)) -> 209.1600529 | I3: Type bloc | J3: Longueur (mm) | K3: Largeur (mm) | L3: Epaisseur (mm) | M3: Masse (g) | N3: g/dm3 | AC3: Bloc
B4: FALSE | C4: - | D4: Depron 3 | E4: =IF(B4=TRUE,Surface_Alaire*2,"-") -> - | F4: - | G4: =IF(AND($D4<>"",B4=TRUE),(VLOOKUP($D4,$I$25:$N$44,6,FALSE))*E4,0) -> 0 | I4: Styro bleu | J4: 100 | K4: 100 | L4: 100 | M4: 37 | N4: =IF(AND(I4<>"",M4<>""),M4/((L4*K4*J4)/1000000),0) -> 37 | AC4: Planche
B5: FALSE | C5: - | D5: Papier kraft moyen | E5: =IF(B5=TRUE,Surface_Alaire*2,"-") -> - | F5: - | G5: =IF(AND($D5<>"",B5=TRUE),(VLOOKUP($D5,$I$46:$N$65,6,FALSE))*E5,0) -> 0 | I5: Styro jaune | J5: 1250 | K5: 600 | L5: 100 | M5: 2450 | N5: =IF(AND(I5<>"",M5<>""),M5/((L5*K5*J5)/1000000),0) -> 32.66666667 | P5: Tronçon 1 | R5: =Couple1_Largeur -> 80 | S5: =Couple2_Largeur -> 80 | T5: =Couple2_Position -> 80 | U5: =((((R5+S5)*T5)/2)*2)/10000 -> 1.28 | V5: =(Couple1_Hauteur_haut+Couple1_Hauteur_bas) -> 70 | W5: =(Couple2_Hauteur_haut+Couple2_Hauteur_bas) -> 75 | X5: =((((V5+W5)*T5)/2)*2)/10000 -> 1.16 | Y5: =U5+X5 -> 2.44 | Z5: =((T5/6)*((W5*((2*R5)+S5))+(V5*((2*S5)+R5))))/1000000 -> 0.464 | AA5: =((T5/3))*((R5*V5)+(S5*W5)+SQRT((R5*V5)*(S5*W5)))/1000000 -> 0.4639080186 | AC5: Double planche
B6: Stab | C6: Planche | D6: Coro cirque/panneaux | E6: =Surface_Stab -> 5 | F6: - | G6: =IF(D6<>"",(VLOOKUP($D6,$I$25:$N$44,6,FALSE))*E6,0) -> 22.73478836 | I6: Polystyrène extrudé | J6: 100 | K6: 100 | L6: 100 | M6: 37.5 | N6: 37.5 | P6: Tronçon 2 | R6: =S5 -> 80 | S6: =Couple3_Largeur -> 80 | T6: =Couple3_Position-Couple2_Position -> 60 | U6: =((((R6+S6)*T6)/2)*2)/10000 -> 0.96 | V6: =W5 -> 75 | W6: =(Couple3_Hauteur_haut+Couple3_Hauteur_bas) -> 100 | X6: =((((V6+W6)*T6)/2)*2)/10000 -> 1.05 | Y6: =U6+X6 -> 2.01 | Z6: =((T6/6)*((W6*((2*R6)+S6))+(V6*((2*S6)+R6))))/1000000 -> 0.42 | AA6: =((T6/3))*((R6*V6)+(S6*W6)+SQRT((R6*V6)*(S6*W6)))/1000000 -> 0.4185640646
B7: FALSE | C7: - | D7: Papier kraft moyen | E7: =IF(B7=TRUE,Surface_Stab*2,"-") -> - | F7: - | G7: =IF(AND($D7<>"",B7=TRUE),(VLOOKUP($D7,$I$46:$N$65,6,FALSE))*E7,0) -> 0 | I7: Polystyrène expansé | J7: 100 | K7: 100 | L7: 100 | M7: 27.3 | N7: 27.3 | P7: Tronçon 3 | R7: 80 | S7: =Couple4_Largeur -> 80 | T7: =Couple4_Position-Couple3_Position -> 230 | U7: 3.68 | V7: 100 | W7: =(Couple4_Hauteur_haut+Couple4_Hauteur_bas) -> 100 | X7: 4.6 | Y7: 8.28 | Z7: 1.84 | AA7: 1.84 | AC7: Fuselage
B8: Dérive | C8: Planche | D8: Coro ASF | E8: =Surface_Derive -> 2 | F8: - | G8: =IF(D8<>"",(VLOOKUP($D8,$I$25:$N$44,6,FALSE))*E8,0) -> 13 | I8: Poly blanc dense | J8: 100 | K8: 100 | L8: 100 | M8: 27.3 | N8: 27.3 | P8: Tronçon 4 | R8: 80 | S8: =Couple5_Largeur -> 80 | T8: =Couple5_Position-Couple4_Position -> 50 | U8: 0.8 | V8: 100 | W8: =(Couple5_Hauteur_Haut+Couple5_Hauteur_Bas) -> 65 | X8: 0.825 | Y8: 1.625 | Z8: 0.33 | AA8: 0.32749677 | AC8: Bloc
B9: FALSE | C9: - | D9: Papier kraft moyen | E9: =IF(B9=TRUE,Surface_Derive*2,"-") -> - | F9: - | G9: =IF(AND($D9<>"",B9=TRUE),(VLOOKUP($D9,$I$46:$N$65,6,FALSE))*E9,0) -> 0 | I9: Poly blanc léger | J9: 100 | K9: 100 | L9: 100 | M9: 12.5 | N9: 12.5 | P9: Tronçon 5 | R9: 80 | S9: =Couple6_Largeur -> 46 | T9: =Couple6_Position-Couple5_Position -> 250 | U9: 3.15 | V9: 65 | W9: =(Couple6_Hauteur_Haut+Couple6_Hauteur_Bas) -> 45 | X9: 2.75 | Y9: 5.9 | Z9: 0.8520833333 | AA9: 0.8792377956 | AC9: Planche
B10: Fuselage | C10: Caisse | D10: Coro cirque/panneaux | E10: =IF($C$10="bloc","-",SUM(E12:E18)) -> 23.692 | F10: =IF($C$10="bloc",SUM(F12:F18),"-") -> - | G10: =SUM(G12:G18) -> 107.7265212 | I10: EPP 3 | J10: 900 | K10: 600 | L10: 3 | M10: 52 | N10: 32.09876543 | P10: Tronçon 6 | R10: 46 | S10: =Couple7_Largeur -> 35 | T10: =Couple7_Position-Couple6_Position -> 95 | U10: 0.7695 | V10: 45 | W10: =(Couple7_Hauteur_haut+Couple7_Hauteur_bas) -> 45 | X10: 0.855 | Y10: 1.6245 | Z10: 0.1731375 | AA10: 0.1726028475 | AC10: Caisse
B11: FALSE | C11: - | D11: Papier kraft moyen | E11: =IF($C$10="planche",Surface_Verticale_fuselage_Planche,Surface_Totale_Fuselage_Caisse) -> 23.692 | F11: - | G11: =IF(AND($D11<>"",B11=TRUE),(VLOOKUP($D11,$I$46:$N$65,6,FALSE))*E11,0) -> 0 | I11: EPP 4 | J11: 900 | K11: 600 | L11: 4 | M11: 64 | N11: 29.62962963 | P11: Tronçon 7 | R11: 35 | S11: =Couple8_Largeur -> 20 | T11: =Couple8_Position-Couple7_Position -> 125 | U11: 0.6875 | V11: 45 | W11: =(Couple8_Hauteur_haut+Couple8_Hauteur_bas) -> 45 | X11: 1.125 | Y11: 1.8125 | Z11: 0.1546875 | AA11: 0.1527328371
B12: Tronçon 1 | C12: =$C$10 -> Caisse | D12: =$D$10 -> Coro cirque/panneaux | E12: =IF($C$10="bloc","-",IF($C$10="caisse",Y5,X5)) -> 2.44 | F12: =IF($C$10="bloc",Z5,"-") -> - | G12: =IF($D$10="",0,(IF(E12="-",VLOOKUP($D$10,$I$4:$N$23,6,FALSE)*F12,VLOOKUP($D$10,$I$25:$N$44,6,FALSE)*E12))) -> 11.09457672 | I12: EPP 15g | J12: 100 | K12: 100 | L12: 100 | M12: 15 | N12: 15 | W12: Totaux | X12: =SUM(X5:X11) -> 12.365 | Y12: =SUM(Y5:Y11) -> 23.692 | Z12: =SUM(Z5:Z11) -> 4.233908333 | AA12: =SUM(AA5:AA11) -> 4.254542333
B13: Tronçon 2 | C13: =$C$10 -> Caisse | D13: =$D$10 -> Coro cirque/panneaux | E13: =IF($C$10="bloc","-",IF($C$10="caisse",Y6,X6)) -> 2.01 | F13: - | G13: 9.139384921 | I13: EPP 20g | J13: 100 | K13: 100 | L13: 100 | M13: 20 | N13: 20
B14: Tronçon 3 | C14: Caisse | D14: Coro cirque/panneaux | E14: 8.28 | F14: - | G14: 37.64880952 | I14: Floormate 200 bleu | J14: 100 | K14: 100 | L14: 100 | M14: 33 | N14: 33 | W14: pyramide tronquée | Z14: tas de sable
B15: Tronçon 4 | C15: Caisse | D15: Coro cirque/panneaux | E15: 1.625 | F15: - | G15: 7.388806217 | I15: Floormate 200 SL-X | J15: 100 | K15: 100 | L15: 100 | M15: 23.8 | N15: 23.8 | W15: V= (h/3)x(B+b+Racine(Bxb)) | Z15: V = H/6 ( L(2a+a') + L'(2a'+a) )
B16: Tronçon 5 | C16: Caisse | D16: Coro cirque/panneaux | E16: 5.9 | F16: - | G16: 26.82705026 | I16: Styrodur C vert 2500 C | J16: 100 | K16: 100 | L16: 100 | M16: 29 | N16: 29 | X16: base1 | Y16: base2
B17: Tronçon 6 | C17: Caisse | D17: Coro cirque/panneaux | E17: 1.6245 | F17: - | G17: 7.386532738 | N17: 0 | W17: Longueur mm | X17: 40 | Y17: 65
B18: Tronçon 7 | C18: Caisse | D18: Coro cirque/panneaux | E18: 1.8125 | F18: - | G18: 8.24136078 | N18: 0 | W18: Largeur mm | X18: 42 | Y18: 84
B19: Couples | C19: Planche | D19: CTP 5mm | E19: - | F19: - | G19: =(SUM(G21:G28)-G20) -> 37.55208333 | N19: 0 | W19: Surface mm² | X19: =(X17*X18) -> 1680 | Y19: =(Y17*Y18) -> 5460
B20: TRUE | C20: - | D20: - | E20: - | F20: - | G20: =IF(B20=TRUE,(SUM(G21:G28)/3),0) -> 18.77604167 | N20: 0 | W20: hauteur mm | X20: 70
B21: TRUE | C21: Planche | D21: =$D$19 -> CTP 5mm | E21: =IF(B21=TRUE,(Couple1_Largeur*(Couple1_Hauteur_haut+Couple1_Hauteur_bas))/10000,"-") -> 0.56 | F21: - | G21: =IF(AND($D$19<>"",B21=TRUE),(VLOOKUP($D$19,$I$25:$N$44,6,FALSE))*E21,0) -> 13.61111111 | N21: 0 | W21: volume mm3 | X21: =((X20/3))*(X19+Y19+SQRT(X19*Y19)) -> 237268.805 | Z21: =((X20/6)*((Y18*((2*X17)+Y17))+(X18*((2*Y17)+X17)))) -> 225400
B22: FALSE | C22: Planche | D22: =$D$19 -> CTP 5mm | E22: =IF(B22=TRUE,(Couple2_Largeur*(Couple2_Hauteur_haut+Couple2_Hauteur_bas))/10000,"-") -> - | F22: - | G22: 0 | N22: 0 | W22: volume dm3 | X22: =X21/1000000 -> 0.237268805 | Z22: =Z21/1000000 -> 0.2254
B23: TRUE | C23: Planche | D23: CTP 5mm | E23: =IF(B23=TRUE,(Couple3_Largeur*(Couple3_Hauteur_haut+Couple3_Hauteur_bas))/10000,"-") -> 0.8 | F23: - | G23: 19.44444444 | N23: 0 | W23: m3 | X23: =X22/1000 -> 0.000237268805 | Z23: =Z22/1000 -> 0.0002254
B24: TRUE | C24: Planche | D24: CTP 5mm | E24: =IF(B24=TRUE,(Couple4_Largeur*(Couple4_Hauteur_haut+Couple4_Hauteur_bas))/10000,"-") -> 0.8 | F24: - | G24: 19.44444444 | I24: Type planche et coffrage | J24: Longueur | K24: Largeur | L24: - | M24: Masse | N24: g/dm2 | W24: masse volumique | X24: 37.5 | Y24: g/dm3
B25: FALSE | C25: Planche | D25: CTP 5mm | E25: =IF(B25=TRUE,(Couple5_Largeur*(Couple5_Hauteur_Haut+Couple5_Hauteur_Bas))/10000,"-") -> - | F25: - | G25: 0 | I25: Depron 3 | J25: 100 | K25: 100 | L25: - | M25: 1 | N25: =IF(AND(I25<>"",M25<>"",K25<>0,J25<>0),M25/((K25*J25)/10000),0) -> 1 | W25: masse | X25: =X24*X22 -> 8.897580187 | Z25: =Z22*X24 -> 8.4525
B26: FALSE | C26: Planche | D26: CTP 5mm | E26: =IF(B26=TRUE,(Couple6_Largeur*(Couple6_Hauteur_Haut+Couple6_Hauteur_Bas))/10000,"-") -> - | F26: - | G26: 0 | I26: Depron 6 | J26: 100 | K26: 100 | L26: - | M26: 2 | N26: 2
B27: TRUE | C27: Planche | D27: CTP 5mm | E27: =IF(B27=TRUE,(Couple7_Largeur*(Couple7_Hauteur_haut+Couple7_Hauteur_bas))/10000,"-") -> 0.1575 | F27: - | G27: 3.828125 | I27: Coro 2 mm | J27: 1000 | K27: 1000 | L27: - | M27: 450 | N27: 4.5
B28: FALSE | C28: Planche | D28: CTP 5mm | E28: =IF(B28=TRUE,(Couple8_Largeur*(Couple8_Hauteur_haut+Couple8_Hauteur_bas))/10000,"-") -> - | F28: - | G28: 0 | I28: Coro 3 mm | J28: 1000 | K28: 1000 | L28: - | M28: 600 | N28: 6
I29: Coro 4 mm | J29: 1000 | K29: 1000 | L29: - | M29: 750 | N29: 7.5
I30: Coro ASF | J30: 300 | K30: 200 | L30: - | M30: 39 | N30: 6.5
C31: Etude des masses | I31: Coro cirque/panneaux | J31: 189 | K31: 128 | L31: - | M31: 11 | N31: 4.546957672
C32: Masse maxi modèle (g) | D32: =Masse_Maxi -> 1265 | I32: CTP 2,5mm | J32: 383 | K32: 280 | L32: - | M32: 126 | N32: 11.74934726
C33: Masse des équipements (g) | D33: =Masse_des_équipements -> 860 | I33: CTP 0,8 | J33: 100 | K33: 100 | L33: - | M33: 6.9 | N33: 6.9
C34: Masse structure estimée (g) | D34: =SUM(G3:G9)+G10+G11+G19 -> 390.1734458 | I34: CTP 5mm | J34: 180 | K34: 32 | L34: - | M34: 14 | N34: 24.30555556
C35: Masse totale (g) | D35: =Masse_des_équipements+Masse_structure_estimee -> 1250.173446 | I35: Mélaminé carton | J35: 490 | K35: 60 | L35: - | M35: 71 | N35: 24.14965986
C36: Marge de masses (g) | D36: =D32-D35 -> 14.82655423 | I36: Balsa moi (pesé réel) | J36: 100 | K36: 100 | L36: - | M36: 4.35 | N36: =IF(AND(I36<>"",M36<>"",K36<>0,J36<>0),M36/((K36*J36)/10000),0) -> 4.35
I37: Balsa plume (1,5mm) | J37: 100 | K37: 100 | L37: - | M37: 1.2 | N37: =IF(AND(I37<>"",M37<>"",K37<>0,J37<>0),M37/((K37*J37)/10000),0) -> 1.2
I38: Balsa 10/10 (1mm) | J38: 100 | K38: 100 | L38: - | M38: 2 | N38: 2
I39: Balsa 15/10 (1,5mm) | J39: 100 | K39: 100 | L39: - | M39: 3 | N39: 3
I40: Balsa 20/10 (2mm) | J40: 100 | K40: 100 | L40: - | M40: 4 | N40: 4
I41: Balsa 30/10 (3mm) | J41: 100 | K41: 100 | L41: - | M41: 6 | N41: 6
I42: Samba 10/10 (1mm) | J42: 100 | K42: 100 | L42: - | M42: 4.5 | N42: 4.5
I43: EPP | J43: 100 | K43: 100 | L43: - | M43: 2 | N43: 2
I44: Coro Hepar | J44: 460 | K44: 50 | M44: 8 | N44: =IF(AND(I44<>"",M44<>"",K44<>0,J44<>0),M44/((K44*J44)/10000),0) -> 3.47826087
I45: Type entoilage | J45: Longueur | K45: Largeur | L45: - | M45: Masse | N45: g/dm2
I46: Oracover | J46: 1000 | K46: 1000 | L46: - | M46: 77 | N46: =IF(AND(I46<>"",M46<>"",K46<>0,J46<>0),M46/((K46*J46)/10000),0) -> 0.77
I47: Oracover transparent | J47: 1000 | K47: 1000 | L47: - | M47: 54 | N47: =IF(AND(I47<>"",M47<>"",K47<>0,J47<>0),M47/((K47*J47)/10000),0) -> 0.54
I48: Orastick | J48: 1000 | K48: 1000 | L48: - | M48: 80 | N48: 0.8
I49: Oralight transparent | J49: 1000 | K49: 1000 | L49: - | M49: 36 | N49: 0.36
I50: Oralight opaque | J50: 1000 | K50: 1000 | L50: - | M50: 45 | N50: 0.45
I51: Oratex | J51: 1000 | K51: 1000 | M51: 100 | N51: 1
I52: Papier kraft armé | J52: 1000 | K52: 1000 | L52: - | M52: 130 | N52: 1.3
I53: Papier kraft léger | J53: 1000 | K53: 1000 | L53: - | M53: 40 | N53: 0.4
I54: Papier kraft moyen | J54: 1000 | K54: 1000 | L54: - | M54: 60 | N54: 0.6
I55: Papier kraft lourd | J55: 1000 | K55: 1000 | L55: - | M55: 80 | N55: 0.8
I56: Venilia | J56: 100 | K56: 100 | L56: - | M56: 1.5 | N56: 1.5
I57: Couvre livre | J57: 100 | K57: 100 | L57: - | M57: 0.56 | N57: 0.56
I58: Laminate film 1.7 mil | J58: 100 | K58: 100 | L58: - | M58: 0.42 | N58: 0.42
I59: Laminate film 3.5 mil | J59: 100 | K59: 100 | L59: - | M59: 1 | N59: 1
I60: Covering Film HK | J60: 1000 | K60: 1000 | M60: 80 | N60: 0.8
I61: Solarfilm | J61: 100 | K61: 100 | L61: - | M61: 0.6 | N61: 0.6
I62: Soie | L62: - | N62: 0
I63: Tissu coton | L63: - | N63: 0
L64: - | N64: 0
L65: - | N65: 0

Sheet Motorisation
B1: La plupart des formules de cet onglet sont tirées du fichier de Franck A. (CalculMotorisationSimplifiée.xsl), formules et calculs vérifiés tous ok le 14/07/2015
B3: moteur | E3: accu | I3: Vérifications | N3: Boucher | O3: =O4/(12^5*1000^3) -> 3.817836934e-15
B4: Type de moteur | C4: 3.5 | E4: Type d'accu | F4: 3.7 | I4: KV du moteur chosi | K4: 1000 | N4: K = | O4: =C31 -> 0.95
B5: Rendement | C5: 75 | E5: Nombre d'éléments | F5: 3 | I5: Masse du moteur choisi (g) | K5: 130
B6: Puissance massique (W/kg) | C6: 200 | E6: Etat de l'accu | F6: 1/3 du vol | I6: Intensité max du moteur choisi (A) | K6: 38 | N6: Rappels des masses
B7: Masse calculée modèle (g) | C7: =Masse_Totale_Calculee -> 1250.173446 | E7: Tension moy calculée (V) | F7: =F4*F5 -> 11.1 | I7: Puissance max du moteur choisi (W) | K7: 665 | N7: Masse souhaitée du modèle (g) | O7: =Masse_Maxi -> 1265
B8: Puissance moteur min (W) | C8: =ROUND((Puissance_Massique_Moteur*(Masse_Totale_Calculee/1000)),0) -> 250 | E8: Ajustement de la tension (V) | F8: 11.1 | I8: Capacité de l'accu choisi (mAh) | K8: 1800 | N8: Masse structure calculée (g) | O8: =Masse_structure_estimee -> 390.1734458
B9: Puissance moteur sécu (W) | C9: =ROUND(((((Puissance_Massique_Moteur*(Masse_Totale_Calculee/1000))*1.02)*100)/Rendement_Moteur),0) -> 340 | E9: Taux de décharge max (C) | F9: 25 | I9: Intensité de décharge constante théorique (A) | K9: =Capacite_Accu_Choisie*Taux_Decharge_Accu/1000 -> 45 | L9: A | N9: Masse des équipements (g) | O9: =Masse_des_équipements -> 860
B10: Masse moteur min (g) | C10: =ROUND(C9/C4,0) -> 97 | E10: Intensité moyenne (A) | F10: =ROUND(C9/Tension_Moyenne,1) -> 30.6 | I10: Intensité de décharge constante conseillée (A) | K10: =I_Const_Theorique*(2/3) -> 30 | L10: A | N10: Masse totale calculée (g) | O10: =Masse_Totale_Calculee -> 1250.173446
B11: Intensité min moteur (A) | C11: =ROUND((F10*1.02),1) -> 31.2 | E11: Intensité max (A) | F11: =ROUND(F10*(3/2),1) -> 45.9 | I11: Masse calculée de l'accu nu (g) | K11: 158.8235294 | L11: g | N11: Marge de masse (g) | O11: =Masse_Maxi_Page_Moteur-O10 -> 14.82655423
B12: Intensité sécur moteur (A) | C12: =ROUND(F11*1.02,1) -> 46.8 | E12: Capacité min (mAh) | F12: =ROUNDUP((F11/F9)*1000,0) -> 1836 | I12: Masse réelle de l'accu choisi (g) | K12: 138
B13: Puissance moteur restituée | C13: =ROUND(F10*Tension_Moyenne*0.98*(Rendement_Moteur/100),0) -> 250 | E13: Masse accu mini nu (g) | F13: 97.41176471 | J13: Hélice inférieure | K13: hélice choisie | L13: hélice supérieure | O13: km/h | P13: m/s
B14: Kv | C14: 1000 | N14: Vitesse moy palier | O14: =(SQRT((2*9.81)/1.293)*SQRT((Charge_Alaire_Reelle/10)/CzaileChoisi))*3.6 -> 59.69161504 | P14: =O14/3.6 -> 16.58100418
B15: Régime théorique à vide | C15: =Tension_Moyenne*KV -> 11100 | E15: ESC | I15: Diamètre (pouces) | J15: =ROUNDDOWN(F20,0) -> 11 | K15: 10 | L15: =ROUNDUP(F20,0) -> 12 | N15: Coefficient de portance max | O15: 0.9
B16: Régime standard en charge | C16: =C15*0.83 -> 9213 | E16: Intensité constante théorique | F16: =C11*1.2 -> 37.44 | I16: Pas (pouces) | J16: =ROUNDDOWN(F21,0) -> 5 | K16: 6 | L16: =ROUNDUP(F21,0) -> 6 | N16: Vitesse décrochage | O16: =4.56*SQRT(Charge_Alaire_Reelle/Czprofildecrochage) -> 35.43764106 | P16: =O16/3.6 -> 9.843789184
E17: Intensité constante à choisir | F17: =ROUNDUP((K23*1.2),0) -> 27 | I17: Rapport Pas/Diamètre | J17: =J16/J15 -> 0.4545454545 | K17: =K16/K15 -> 0.6 | L17: =L16/L15 -> 0.5 | N17: Vitesse air brassé | O17: =O14/0.8 -> 74.6145188 | P17: =O17/3.6 -> 20.72625522
B18: Mes hélices: | C18: K | I18: Régime à vide | J18: =Tension_Moyenne*K4 -> 11100 | K18: =Tension_Moyenne*Kv_Choisi -> 11100 | L18: =Tension_Moyenne*K4 -> 11100
B19: les hélices vérifiées sont en rouge | E19: Hélice théorique | I19: Régime standard | J19: =J18*0.83 -> 9213 | K19: =K18*0.83 -> 9213 | L19: =L18*0.83 -> 9213 | N19: Gestion des Gaz (%) | O19: 100
E20: Diamètre (pouces) | F20: =(C13/(O3*F21*C16^3))^(1/4) -> 11.20393367 | I20: Puissance à l'arbre (W) | J20: =Coefficient_K*(J16/12)*((J15/12)^4)*((J19/1000)^3) -> 218.5552954 | K20: =Coefficient_K*(Pas_Helice_Libre/12)*((Diametre_Helice_Libre/12)^4)*((K19/1000)^3) -> 179.131449 | L20: =Coefficient_K*(L16/12)*((L15/12)^4)*((K19/1000)^3) -> 371.4469726 | N20: Tension moyenne (V) | O20: =Tension_Moyenne -> 11.1
E21: Pas (pouces) | F21: =O17/((2.54*60/100/1000)*C16) -> 5.314192772 | I21: Traction statique (g) | J21: =(28.35*(J16)*(J15)^3*J19^2*10^-10)*Coeff_Traction -> 1153.017136 | K21: =(28.35*(Pas_Helice_Libre)*(Diametre_Helice_Libre)^3*K19^2*10^-10)*Coeff_Traction -> 1039.534608 | L21: =(28.35*(L16)*(L15)^3*L19^2*10^-10)*Coeff_Traction -> 1796.315803 | N21: Intensité correspondante (A) | O21: =(O19/100)*K23 -> 21.95641956 | R21: Régime standard | S21: =K19*Gaz/100 -> 9213
E22: Rapport Pas/Diamètre | F22: =F21/F20 -> 0.4743149084 | I22: Vitesse air brassé (km/h) | J22: =0.001524*$J$19*J16 -> 70.20306 | K22: =0.001524*$K$19*Pas_Helice_Libre -> 84.243672 | L22: =0.001524*$L$19*L16 -> 84.243672 | N22: Puissance consommée (W) | O22: =O20*O21 -> 243.7162571 | R22: Puissance à l'arbre (W) | S22: =Coefficient_K*(Pas_Helice_Libre/12)*((Diametre_Helice_Libre/12)^4)*((S21/1000)^3) -> 179.131449
B23: 6x4,5 rouge aliexpress | C23: 1.28 | E23: Coeff de traction | F23: 0.72 | I23: Intensité nécessaire (A) | J23: =J20/Tension_Moyenne/0.98/Rendement_Moteur*100 -> 26.78866157 | K23: =K20/Tension_Moyenne/0.98/Rendement_Moteur*100 -> 21.95641956 | L23: =L20/Tension_Moyenne/0.98/Rendement_Moteur*100 -> 45.5288316 | N23: Traction statique (g) | O23: =(28.35*(Pas_Helice_Libre)*(Diametre_Helice_Libre)^3*O25^2*10^-10)*Coeff_Traction -> 1039.534608 | R23: Traction statique (g) | S23: =(28.35*(Pas_Helice_Libre)*(Diametre_Helice_Libre)^3*S21^2*10^-10)*Coeff_Traction -> 1039.534608
B24: 7x4 | E24: Régime à vide | F24: =Tension_Moyenne*KV -> 11100 | I24: Puissance consommée (W) | J24: =J23*Tension_Moyenne -> 297.3541434 | K24: =K23*Tension_Moyenne -> 243.7162571 | L24: =L23*Tension_Moyenne -> 505.3700308 | N24: Puissance à l'arbre | O24: =O21*$O$20*0.98*(Rendement_Moteur/100) -> 179.131449 | R24: Vitesse air brassé (km/h) | S24: =0.001524*$S$21*Pas_Helice_Libre -> 84.243672
B25: 8x3,8 SF E | C25: 1.8 | E25: Régime standard | F25: =F24*0.83 -> 9213 | I25: Tension moyenne (V) | J25: =J24/J23 -> 11.1 | K25: =K24/K23 -> 11.1 | L25: =L24/L23 -> 11.1 | N25: Régime (T/mn) | O25: =(O24/(Diametre_Helice_Libre^4*O3*Pas_Helice_Libre))^(1/3) -> 9213 | R25: Intensité nécessaire (A) | S25: =S22/Tension_Moyenne/0.98/Rendement_Moteur*100 -> 21.95641956
B26: 8x4 GWS EP DD | C26: 0.96 | E26: Puissance à l'arbre (W) | F26: =Coefficient_K*(F21/12)*((F20/12)^4)*((F25/1000)^3) -> 250 | I26: Puissance massique (W/kg) | J26: =J20/($C$7/1000) -> 174.8199789 | K26: =K20/($C$7/1000) -> 143.2852774 | L26: =L20/($C$7/1000) -> 297.1163512 | N26: Vitesse air brassé | O26: =0.001524*$O$25*Pas_Helice_Libre -> 84.243672 | P26: =O26/3.6 -> 23.40102 | R26: Puissance consommée (W) | S26: =S25*Tension_Moyenne -> 243.7162571
B27: 8x4E APC | C27: 1.3 | E27: Traction statique (g) | F27: =(28.35*(F21)*(F20)^3*F25^2*10^-10)*Coeff_Traction -> 1294.90108 | I27: Vitesse de vol (km/h) | J27: =J22*0.8 -> 56.162448 | K27: =K22*0.8 -> 67.3949376 | L27: =L22*0.8 -> 67.3949376 | N27: Vitesse de vol (km/h)(m/s) | O27: =O26*0.8 -> 67.3949376 | P27: =O27/3.6 -> 18.720816 | R27: Tension moyenne (V) | S27: =S26/S25 -> 11.1
B28: 8x4.5 SF Electric Prop | E28: Vitesse air brassé (km/h) | F28: =0.001524*F25*F21 -> 74.6145188 | I28: Autonomie plein gaz (mn) | J28: =Capacite_Accu_Choisie/1000/J23*60*0.95 -> 3.82997858 | K28: =Capacite_Accu_Choisie/1000/K23*60*0.95 -> 4.672893033 | L28: =Capacite_Accu_Choisie/1000/L23*60*0.95 -> 2.253517088 | R28: Puissance massique (W/kg) | S28: =S22/($C$7/1000) -> 143.2852774
B29: 9x4.7E SF | C29: 1.1 | E29: Intensité nécessaire (A) | F29: =F26/Tension_Moyenne/0.98/Rendement_Moteur*100 -> 30.64288779 | R29: Vitesse de vol (km/h) | S29: =S24*0.8 -> 67.3949376
B30: 10x4.7 TP SF GWS | C30: 1.4 | I30: Turnigy D3542/6 1000KV Brushless Outrunner Motor | R30: Autonomie plein gaz (mn) | S30: =Capacite_Accu_Choisie/1000/S25*60*0.95 -> 4.672893033
B31: 10x6 noire | C31: 0.95 | E31: Coefficient K théorique | F31: 1.2 | I31: Kv annoncé | J31: 1000
B32: 11x5.5 E APC | C32: 0.94 | E32: Hélices théoriques | F32: K | I32: 38A | J32: 2S
B33: 12x5 Beech wood | C33: 0.65 | I33: 665W | J33: 3S
B34: 12x6 Cherry wood | E34: APC 9x5 | F34: 1.1 | I34: 130g | J34: 4S
B35: 12x6 GWS EP RD
B36: 8x6 APC grise | C36: 1.37
B37: 9x5R noire GWS | C37: 1.05

Sheet Centrage_Vlongi_TP
B3: Aile | D3: panneau1 | E3: panneau 2 | F3: panneau 3 | G3: panneau 4 | H3: panneau 5 | K3: RESULTATS
C4: corde emp. mm | D4: =Cemp_aile -> 230 | E4: =IF(E5,D5,0) -> 0 | F4: =IF(F5,E5,0) -> 0 | G4: =IF(G5,F5,0) -> 0 | H4: =IF(H5,G5,0) -> 0 | I4: mm
C5: corde saum. mm | D5: =Csau_aile -> 230 | I5: mm | P5: Autres résultats
C6: longueur mm | D6: =Env_panneau_aile -> 500 | I6: mm | L6: Position foyer planeur | P6: Aile | Q6: envergure | R6: =E8 -> 1000 | S6: mm
C7: flèche BA mm | D7: =Fleche_aile -> 0 | I7: mm | L7: Position Foyer /BA emplanture | M7: =B77*R9+R10 -> 77.79981189 | N7: mm | Q7: Surface standard | R7: =H50 -> 23 | S7: dm²
C8: Envergure totale | E8: =Env_complete -> 1000 | F8: mm | L8: Position Foyer en % CAM | M8: =B77*100 -> 33.82600517 | N8: % | Q8: Allongement | R8: =R6*R6/(10000*R7) -> 4.347826087
B9: profil | C9: Cm0 profil | E9: =cm0 -> -0.05 | Q9: Corde aérodynamique | R9: =H51 -> 230 | S9: mm
B10: NACA0010 | C10: alpha0 | E10: =alpha0 -> -2.5 | F10: ° | Q10: Flèche emplanture/Cam | R10: =H53 -> 0 | S10: mm
C11: calage aile | E11: =Incidence_aile -> 1.4858 | F11: ° | Q11: A.aile | R11: =E12*R8/(2+R8) -> 0.07534246575
C12: dCz/dAlpha | E12: 0.11 | L12: Centrage pour marge statique = | M12: =Marge_statique -> 5 | N12: % | P12: Stab | Q12: Surface | R12: =H59 -> 5 | S12: dm²
C13: dCm/dAlpha | E13: 0 | L13: Position CG/BA emplanture | M13: =M14*R9/100+R10 -> 66.29981189 | N13: mm | Q13: envergure | R13: =H65 -> 400 | S13: mm
B14: Stab | D14: panneau1 | E14: panneau 2 | F14: panneau 3 | G14: panneau 4 | H14: panneau 5 | L14: Position foyer en % CAM | M14: =M8-M12 -> 28.82600517 | N14: % | Q14: Allongement | R14: =R13*R13/(10000*R12) -> 3.2
C15: corde emp. mm | D15: =Cemp_stab -> 125 | E15: =IF(E16,D16,0) -> 0 | F15: =IF(F16,E16,0) -> 0 | G15: 0 | H15: =IF(H16,G16,0) -> 0 | I15: mm | L15: Vlongitudinal pour Cz = | M15: =CzaileChoisi -> 0.3 | Q15: Corde aérodynamique | R15: =H61 -> 125 | S15: mm
C16: corde saum. mm | D16: =Csau_stab -> 125 | E16: 0 | F16: 0 | I16: mm | L16: V.longi | M16: =L55 -> -0.6366329368 | N16: ° | Q16: Flèche emplanture/Cam | R16: =H63 -> 0 | S16: mm
C17: longueur mm | D17: =Modèle!G8 -> 200 | E17: 0 | F17: 0 | I17: mm | Q17: volume de stab | R17: =H60*R20/(R7*R9) -> 0.5281190926
C18: flèche BA mm | D18: =Fleche_stab -> 0 | E18: 0 | F18: 0 | I18: mm | Q18: Vcg | R18: =L50 -> 0.5198016901
C19: Type empennage | E19: C | Q19: A.stab | R19: =E20*R14/(R14+2) -> 0.06769230769
C20: dCz/dAlpha | E20: 0.11 | P20: Fuselage | Q20: bras de levier arrière | R20: =E25-R10-0.25*R9+R16+0.25*R15 -> 558.75 | S20: mm
C21: coefficient sillage | E21: =IF(E19="C",1.52,IF(E19="V",1.48,IF(E19="T",1.7,"erreur"))) -> 1.52 | Q21: coefficient k | R21: =L52 -> 1.037700445
B22: Fuselage | C22: longueur fuselage | E22: =Longueur_fuselage -> 890 | F22: mm | Q22: coefficient k' | R22: =L53 -> 0
C23: Longueur avant | F23: mm
C25: D aile/ stab | E25: =Levier_Stab -> 585 | F25: mm
C26: Surface fuselage | E26: 0 | F26: dm²
C27: A.fus. | E27: =0.06 -> 0.06
C28: X fus. | E28: =H67 -> 0.165
A48: Aile
A49: surface | B49: =D6*(D5+D4)/20000 -> 11.5 | C49: =E6*(E5+E4)/20000 -> 0 | D49: =F6*(F5+F4)/20000 -> 0 | E49: =G6*(G5+G4)/20000 -> 0 | F49: =H6*(H5+H4)/20000 -> 0 | H49: =2*SUM(B49:F49) -> 23 | K49: X'f | L49: =(E28*E22-E23)/R9 -> 0.6384782609
A50: Surface standard | H50: =H49+D4*E24/10000 -> 23 | K50: Vcg | L50: =R17*(1+(0.25-M14/100)*R9/R20) -> 0.5198016901
A51: cam | B51: =IF(D4+D5=0,0,2*(D4*D4+D4*D5+D5*D5)/(3*(D4+D5))) -> 230 | C51: =IF(E4+E5=0,0,2*(E4*E4+E4*E5+E5*E5)/(3*(E4+E5))) -> 0 | D51: =IF(F4+F5=0,0,2*(F4*F4+F4*F5+F5*F5)/(3*(F4+F5))) -> 0 | E51: =IF(G4+G5=0,0,2*(G4*G4+G4*G5+G5*G5)/(3*(G4+G5))) -> 0 | F51: =IF(H4+H5=0,0,2*(H4*H4+H4*H5+H5*H5)/(3*(H4+H5))) -> 0 | H51: =2*SUM(B52:F52)/H49 -> 230 | K51: Lf/C | L51: =R20/R9+0.25-M8/100 -> 2.341087774
A52: S*cam | B52: =B49*B51 -> 2645 | C52: =C49*C51 -> 0 | D52: =D49*D51 -> 0 | E52: =E49*E51 -> 0 | F52: =F49*F51 -> 0 | K52: k | L52: =1+(M8/100-0.25)/L51+(1+(M8/100-L49)/L51)*E27*E26/(R11*R7) -> 1.037700445
A53: f emp-cam | B53: =IF(D4+D5=0,0,D7*(D4+2*D5)/(3*(D4+D5))) -> 0 | C53: =IF(E4+E5=0,0,E7*(E4+2*E5)/(3*(E4+E5))) -> 0 | D53: =IF(F4+F5=0,0,F7*(F4+2*F5)/(3*(F4+F5))) -> 0 | E53: =IF(G4+G5=0,0,G7*(G4+2*G5)/(3*(G4+G5))) -> 0 | F53: =IF(H4+H5=0,0,H7*(H4+2*H5)/(3*(H4+H5))) -> 0 | H53: =2*SUM(B54:F54)/H49 -> 0 | K53: k' | L53: =(M14/100-L49)*E27*E26/(L50*R19*R7) -> 0
B54: =B53*B49 -> 0 | C54: =(C53+D7)*C49 -> 0 | D54: =(D53+D7+E7)*D49 -> 0 | E54: =(E53+D7+E7+F7)*E49 -> 0 | F54: =(F53+D7+E7+F7+G7)*F49 -> 0 | K54: Cz | L54: =M15 -> 0.3
A55: envergure | H55: =2*SUM(D6:H6) -> 1000 | K55: Vlongi | L55: =L52*M12/100*L54/(L50*R19)-E9/(L50*R19)+E10+L53*(E11-E10) -> -0.6366329368
A58: stab
A59: surface | B59: =D17*(D16+D15)/20000 -> 2.5 | C59: =E17*(E16+E15)/20000 -> 0 | D59: =F17*(F16+F15)/20000 -> 0 | E59: =G17*(G16+G15)/20000 -> 0 | F59: =H17*(H16+H15)/20000 -> 0 | H59: =2*SUM(B59:F59) -> 5
A60: surface horizontale | H60: =H59*IF(E19="C",1,IF(E19="V",0.71, IF(E19="T",1,"erreur"))) -> 5
A61: cam | B61: =IF(D15+D16=0,0,2*(D15*D15+D15*D16+D16*D16)/(3*(D15+D16))) -> 125 | C61: =IF(E15+E16=0,0,2*(E15*E15+E15*E16+E16*E16)/(3*(E15+E16))) -> 0 | D61: =IF(F15+F16=0,0,2*(F15*F15+F15*F16+F16*F16)/(3*(F15+F16))) -> 0 | E61: =IF(G15+G16=0,0,2*(G15*G15+G15*G16+G16*G16)/(3*(G15+G16))) -> 0 | F61: =IF(H15+H16=0,0,2*(H15*H15+H15*H16+H16*H16)/(3*(H15+H16))) -> 0 | H61: =2*SUM(B62:F62)/H59 -> 125
A62: S*cam | B62: =B59*B61 -> 312.5 | C62: =C59*C61 -> 0 | D62: =D59*D61 -> 0 | E62: =E59*E61 -> 0 | F62: =F59*F61 -> 0
A63: f emp-cam | B63: =IF(D15+D16=0,0,D18*(D15+2*D16)/(3*(D15+D16))) -> 0 | C63: =IF(E15+E16=0,0,E18*(E15+2*E16)/(3*(E15+E16))) -> 0 | D63: =IF(F15+F16=0,0,F18*(F15+2*F16)/(3*(F15+F16))) -> 0 | E63: =IF(G15+G16=0,0,G18*(G15+2*G16)/(3*(G15+G16))) -> 0 | F63: =IF(H15+H16=0,0,H18*(H15+2*H16)/(3*(H15+H16))) -> 0 | H63: =2*SUM(B64:F64)/H59 -> 0
B64: =B63*B59 -> 0 | C64: =(C63+D18)*C59 -> 0 | D64: =(D63+D18+E18)*D59 -> 0 | E64: =(E63+D18+E18+F18)*E59 -> 0 | F64: =(F63+D18+E18+F18+G18)*F59 -> 0 | R64: =R20/R9 -> 2.429347826
A65: envergure | H65: =2*SUM(D17:H17) -> 400
G66: Lar | H66: =E22-E23 -> 890 | O66: X = | P66: =2*R20/R6 -> 1.1175
G67: Xf | H67: =(0.399*E23*E23+(E23+0.33*H66)*0.5*H66)/(2*(0.57*E23+0.5*H66)*E22) -> 0.165 | O67: H | P67: =2*M67/R6 -> 0 | Q67: Ss/Sa | R67: =R12/R7 -> 0.2173913043
A68: coeff.sillage | B68: =E21*360/(PI()*PI()*R8) -> 12.75187889 | G68: Sf | H68: =(0.7*E23*E24+E24*(E22-E23)*1.3/2)/10000 -> 0 | O68: L | P68: =SQRT(PI()*PI()/16+P66*P66+P67*P67) -> 1.365890378 | Q68: Sf/Sa | R68: =E26/R7 -> 0
A69: epsilon | B69: =E69 -> 0.8069788842 | D69: =R11*B68 -> 0.9607579984 | E69: =P77*E21 -> 0.8069788842 | Q69: L/C | R69: =R20/R9 -> 2.429347826
A70: dénom. | B70: =H49*R11+H60*R19*(1-B69)+E27*E26 -> 1.798206936 | P70: =(1+P66/P68)*(PI()/4)/(PI()*PI()/16+P67*P67) -> 2.314937483 | Q70: allong aile | R70: =R8 -> 4.347826087
A71: Foyer brut | B71: =0.25+R20*R19*H60/(R9*B70) -> 0.7072559399 | E71: =B71 -> 0.7072559399 | P71: =(PI()/4)*(P66/P68)/(P66*P66+P67*P67) -> 0.514548722 | Q71: allong stab | R71: =R14 -> 3.2
A72: correction sillage | B72: =B69*R20*R19*H60/(R9*B70) -> 0.3689958882 | E72: =B71-B72 -> 0.3382600517 | P72: =(2/PI())/(1+SQRT(1+R8*R8/4)) -> 0.1876337689
A73: correction Cm | B73: =E13/E12*R11*R7/B70 -> 0 | E73: =E72-B73 -> 0.3382600517
A74: D avant-Faile | B74: =E23+R10+0.25*R9 -> 57.5
A75: F fus | B75: =E28*E22 -> 146.85
A76: correction fus | B76: =((B74-B75)/R9)*E27*E26/B70 -> 0 | C76: =1.19*E26*E27/(R7*R11) -> 0 | E76: =E73-B76 -> 0.3382600517
A77: Foyer complet | B77: =B71-B72-B73-B76 -> 0.3382600517 | P77: =P72*(P70+P71) -> 0.5309071607
P78: =4/(R8+2) -> 0.6301369863

Sheet Cotes réelles
A2: principe | B2: mesurer sur une image l'envergure, la longueur, puis en connaissant l'envergure réelle du modèle, ça calcule l'échelle de la photo et tout le reste
B3: ne reste plus qu'à mesurer les cotes sur la photo pour avoir les cotes réelles
B4: Toutes les cotes sont en mm
A6: Echelle | C6: mesurée | D6: réelle | F6: surface aile réelle | G6: =((((D14+D15)*(D7/2))/2)/10000)*2 -> 7.806314881 | H6: dm²
A7: =C7/D7 -> 0.248349835 | B7: envergure | C7: 150.5 | D7: 606 | F7: surface aile mesurée | G7: =((((C14+C15)*(C7/2))/2)/10000)*2 -> 0.4816 | H7: dm²
A8: =C8/D8 -> 0.2484787018 | B8: longueur totale (vérif échelle) | C8: 122.5 | D8: 493 | F8: allongement aile réel | G8: =((D7*D7)/G6)/10000 -> 4.704345208
A9: =(A7+A8)/2 -> 0.2484142684 | C9: échelle moyenne | F9: allongement aile mesuré | G9: =((C7*C7)/G7)/10000 -> 4.703125
F10: effilement | G10: =D15/D14 -> 0.5609756098
C12: mesure | D12: calcul | F12: surface stab réelle | G12: =((((D20+D21)*(D18/2))/2)/10000)*2 -> 1.47383759 | H12: dm² | L12: mesure | M12: calcul
A13: Aile | B13: demi-envergure | C13: =C7/2 -> 75.25 | D13: =D7/2 -> 303 | F13: surface stab mesurée | G13: =((((C20+C21)*(C18/2))/2)/10000)*2 -> 0.09095 | H13: dm² | J13: Fuselage (cotes en mm) | K13: Hauteur aile / ligne ref fus | L13: 0 | M13: =L13/$A$9 -> 0
B14: corde emplanture | C14: 41 | D14: =C14/$A$9 -> 165.0468802 | F14: allongement stab réel | G14: =((D18*D18)/G12)/10000 -> 3.147058824 | K14: Hauteur stab / ligne ref fus | L14: 0 | M14: =L14/$A$9 -> 0
B15: corde saumon | C15: 23 | D15: 92.58727426 | F15: allongement stab mesuré | G15: =((C18*C18)/G13)/10000 -> 3.147058824 | K15: Longueur cône | L15: 0 | M15: =L15/$A$9 -> 0
A16: Ailerons | B16: Longueur | D16: 0 | F16: effilement | G16: =D21/D20 -> 0.619047619 | K16: Diamètre du cône | L16: 0 | M16: =L16/$A$9 -> 0
B17: Largeur (profondeur) | C17: 11 | D17: 44.2808703 | K17: Couple 1 nez
A18: Stab | B18: envergure stab | C18: 53.5 | D18: =C18/$A$9 -> 215.366051 | F18: longueur totale (vérif calculs) | G18: =D30+M15+D25 -> 529.3576768 | K18: Largeur | L18: 20 | M18: =L18/$A$9 -> 80.51067327
B19: demi-envergure | C19: =C18/2 -> 26.75 | D19: =D18/2 -> 107.6830255 | K19: Hauteur bout nez haut | L19: 3 | M19: =L19/$A$9 -> 12.07660099
B20: corde emplanture stab | C20: 21 | D20: 84.53620694 | K20: Hauteur bout nez bas | L20: 7 | M20: =L20/$A$9 -> 28.17873565
B21: corde saumon stab | C21: 13 | D21: 52.33193763 | K21: Couple 2
A22: volet de profondeur | B22: largeur | C22: 11 | D22: 44.2808703 | K22: Position | L22: 14.5 | M22: =L22/$A$9 -> 58.37023812
A23: Dérive | B23: Largeur Haute | C23: 13 | D23: 52.33193763 | F23: centrage depuis le bout du nez | G23: 38.5 | H23: =G23/$A$9 -> 154.9830461 | K23: Largeur | L23: 18 | M23: =L23/$A$9 -> 72.45960595
B24: Largeur Basse | C24: 30 | D24: 120.7660099 | F24: centrage depuis emplanture | G24: 16 | H24: =G24/$A$9 -> 64.40853862 | K24: Hauteur haut | L24: 5 | M24: =L24/$A$9 -> 20.12766832
B25: Position (décalage) | C25: 9 | D25: 36.22980297 | F25: vérif | G25: =G23-C29 -> 15.5 | H25: =G25/$A$9 -> 62.39577179 | K25: Hauteur bas | L25: 12.5 | M25: =L25/$A$9 -> 50.3191708
B26: Hauteur | C26: 20 | D26: 80.51067327 | K26: Couple 3 emplanture Aile
A27: Volet de direction | B27: Hauteur | D27: 0 | K27: Position | L27: 23 | M27: =L27/$A$9 -> 92.58727426
B28: Largeur | C28: 14 | D28: 56.35747129 | K28: Largeur | L28: 16.5 | M28: =L28/$A$9 -> 66.42130545
A29: Fuselage vue de dessus | B29: Longueur du nez | C29: 23 | D29: 92.58727426 | K29: Hauteur haut | L29: 6 | M29: =L29/$A$9 -> 24.15320198
B30: Longueur fuselage | C30: 122.5 | D30: 493.1278738 | K30: Hauteur bas | L30: 14 | M30: =L30/$A$9 -> 56.35747129
A31: bulle | B31: Position début bulle | C31: 43 | D31: 173.0979475 | K31: Couple 4 fuite Aile
B32: Hauteur début bulle | D32: 0 | K32: Position | L32: 64 | M32: =L32/$A$9 -> 257.6341545
B33: Position milieu1 bulle | D33: 0 | K33: Largeur | L33: 11 | M33: =L33/$A$9 -> 44.2808703
B34: Hauteur milieu1 bulle | D34: 0 | K34: Hauteur haut | L34: 11.5 | M34: =L34/$A$9 -> 46.29363713
B35: Position milieu2 bulle | D35: 0 | K35: Hauteur bas | L35: 6 | M35: =L35/$A$9 -> 24.15320198
B36: Hauteur milieu2 bulle | D36: 0 | K36: Couple 5
B37: Position fin bulle | D37: 0 | K37: Position | L37: 67.5 | M37: =L37/$A$9 -> 271.7235223
B38: Hauteur fin bulle | D38: 0 | K38: Largeur | L38: 10.5 | M38: =L38/$A$9 -> 42.26810347
A39: Train | B39: Hauteur du train principal (mm) | C39: 24 | D39: 96.61280793 | K39: Hauteur haut | L39: 11 | M39: =L39/$A$9 -> 44.2808703
B40: Inclinaison du train principal (°) | C40: 0 | D40: 0 | K40: Hauteur bas | L40: 11 | M40: =L40/$A$9 -> 44.2808703
B41: en mm / axe vertical CG | D41: 0 | K41: Couple 6
B42: Garde au sol | D42: 0 | K42: Position | L42: 89 | M42: =L42/$A$9 -> 358.2724961
B43: Hauteur roulette de nez (mm) | D43: 0 | K43: Largeur | L43: 7.5 | M43: =L43/$A$9 -> 30.19150248
B44: Inclinaison roulette de nez en ° | D44: 0 | K44: Hauteur haut | L44: 7 | M44: =L44/$A$9 -> 28.17873565
B45: par rapport à l'axe vertical du CG | D45: 0 | K45: Hauteur bas | L45: 9.5 | M45: =L45/$A$9 -> 38.2425698
B46: Inclinaison roulette de queue en ° | D46: 0 | K46: Couple 7 emplanture Stab
B47: Hauteur max roulette de queue | D47: 0 | K47: Position | L47: 102 | M47: =L47/$A$9 -> 410.6044337
B48: Empattement (mm) | D48: 0 | K48: Largeur | L48: 6 | M48: =L48/$A$9 -> 24.15320198
B49: Diamètre des roues (mm) | C49: 5 | D49: 20.12766832 | K49: Hauteur haut | L49: 5 | M49: =L49/$A$9 -> 20.12766832
B50: Voie minimum du train | D50: 0 | K50: Hauteur bas | L50: 9 | M50: =L50/$A$9 -> 36.22980297
K51: Couple 8 queue
K52: Position | L52: 122.5 | M52: =L52/$A$9 -> 493.1278738
K53: Largeur | L53: 2 | M53: =L53/$A$9 -> 8.051067327
K54: Hauteur haut | M54: =L54/$A$9 -> 0
K55: Hauteur bas | M55: =L55/$A$9 -> 0

Sheet Convertisseur
A1: pouces | B1: cm
